{"text_format":"1","workbook":"xlsx","n_sheets":6,"sheets":["Home","SE1","SE2.GFS","SE2.GSA","SE3","SE4"],"not_rendered":{"charts":0,"images":2,"macros":1,"external_links":0,"defined_names":1,"comments":0,"pivot_tables":0},"unopened":[],"bounds":{"document_bytes":16777216,"sheet_cells":100000,"rows_first":2000,"rows_last":500,"rows_between":2000,"halvings":0,"cell_chars":16384,"cell_head_chars":4096},"cells_cut":0,"cells_raw":0,"read":"whole","date_system":"1900"}

{"sheet":"Home","index":0,"n_rows":66,"n_cols":14,"rows_kept":66,"cut":false,"hidden":false,"merged":[[64,0,64,8],[65,0,65,8],[66,0,66,8],[30,10,30,11],[30,12,30,13],[39,0,39,13],[41,0,41,3],[41,4,41,13],[35,0,35,13],[0,1,2,2],[5,4,5,12],[13,0,13,13],[11,0,11,4],[11,5,11,12],[5,0,5,2],[7,0,7,13],[8,0,8,4],[9,0,9,4],[10,0,10,4],[8,5,8,12],[9,5,9,12],[10,5,10,12],[3,0,3,13],[4,0,4,13],[29,10,29,11],[29,12,29,13],[18,0,18,13],[23,0,23,13],[27,0,27,13],[63,0,63,8],[31,10,31,11],[31,12,31,13],[55,0,55,13],[42,0,42,9],[43,0,43,9],[51,0,51,13],[46,0,46,3],[46,4,49,13],[47,0,47,3],[61,0,61,8],[57,0,57,8],[59,0,59,8],[32,10,32,11],[32,12,32,13]]}
[]
[]
[]
["DOCUMENTO DI PROGETTO"]
["Il Documento di Progetto (DdP) è una descrizione che riassume le risorse e gli ambiti di valutazione e miglioramento considerati, al fine di ottenere la certiifcazione del/i Servizi Ecosistemici. Va compilata la specifica pagina del DdP per ogni Servizio Ecosistemico da certificare.\nDi seguito sono riportate le informazioni da inserire per la corretta compilazione del documento. \nNB: alcuni dei dati richiesti sono output delle valutazioni riportate nelle pagine successive."]
["ORGANIZZAZIONE"]
[]
["DATI DI CONTATTO"]
["Nome del Referente"]
["Indirizzo Mail"]
["Numero di Telefono"]
["Disponibilità ad entrare in un mercato volontario"]
[]
["CARATTERISTICHE dell’AREA FORESTALE:"]
[]
[]
[]
[]
["STANDARD A CUI SI ASSOCIANO I SERVIZI ECOSISTEMICI:"]
[]
[]
[]
[]
["CARATTERISTICHE dell’ente che RICHIEDE I SERVIZI ECOSISTEMICI:"]
[]
[]
[]
["ELENCO SERVIZI ECOSISTEMICI PER CUI SI CHIEDE LA CERTIFICAZIONE E LORO ATTUAZIONE IN ETTARI"]
[]
[null,"●","SE1 -TUTELA DELLA CO2 STOCCATA/NON EMESSA",null,null,null,null,null,null,null,"Superficie (ha)"]
[null,"●","SE2 - TUTELA DELLE BIODIVERSITÀ",null,null,null,null,null,null,null,"Superficie (ha)"]
[null,"●","SE3 - SVILUPPO E TUTELA DEI SERVIZI TURISTICO-RICREATIVI",null,null,null,null,null,null,null,"Superficie (ha)"]
[null,"●","SE4- IDONEITA' AL BENESSERE FORESTALE",null,null,null,null,null,null,null,"Superficie (ha)"]
[]
[]
["TIPOLOGIA DI CERTIFICAZIONE (ad esclusine dell'idoneità al benessere forestale)"]
[]
[null,null,"CERTIFICAZIONE INDIVIDUALE",null,null,null,null,null,null,"CERT GRUPPO \"PORTATORI D'INNOVAZIONE\""]
[]
["UBICAZIONE delle AREE FORESTALI per cui si RICHIEDE I SERVIZI ECOSISTEMICI:"]
[]
["Indicare le province in \ncui sono ubicate le aree forestali:"]
[" Avere un certificato PEFC di gestione forestale sostenibile/dell’arboricoltura in corso di validità",null,null,null,null,null,null,null,null,null,null,null,"SI","NO"]
["Hai una GFS con obiettivi e attività aggiuntive rispetto ad una gestione ordinaria e con risultati che permangano nel tempo",null,null,null,null,null,null,null,null,null,null,null,"SI","NO"]
[]
[]
["Descizione del Progetto:"]
["b) Definire i servizi ecosistemici da includere nella certificazione"]
[]
[]
[]
["AMBITO DI ATTIVITA'"]
[]
[null,null,null,null,null,"FORESTE",null,null,null,"PIANTAGIONI"]
[]
["TIPOLOGIA SERVIZI ECOSISTEMICI IN CERTIFICAZIONE"]
[]
["Carbonio Forestale"]
[]
["Tutela della Biodiversità-Foreste"]
[]
["Tutela della Biodiversità-Piantagioni"]
[]
["Funzioni Turistico Ricreative"]
[]
["Idoneità al benessere forestale"]

{"sheet":"SE1","index":1,"n_rows":77,"n_cols":9,"rows_kept":77,"cut":false,"hidden":false,"merged":[[61,4,63,13],[65,0,69,3],[65,4,69,13],[7,0,7,13],[58,4,58,13],[56,0,56,3],[58,0,58,3],[52,12,52,13],[36,0,36,3],[36,4,38,13],[37,0,38,3],[40,0,40,3],[40,4,42,13],[41,0,42,3],[44,0,44,3],[44,4,46,13],[71,0,72,3],[71,4,72,13],[61,0,63,3],[17,0,17,3],[17,4,19,13],[18,0,18,3],[19,0,19,3],[22,4,24,13],[23,0,23,3],[24,0,24,3],[26,0,26,3],[26,4,28,13],[27,0,28,3],[30,0,32,3],[30,4,34,13],[33,0,34,3],[56,4,56,13],[45,0,45,3],[46,0,46,3],[3,0,3,13],[5,1,5,3],[5,4,5,13],[9,0,10,3],[9,4,10,13],[13,0,13,3],[13,4,15,13],[14,0,15,3],[22,0,22,3]]}
[]
[]
[]
["SE1 - CARBONIO FORESTALE"]
[]
[null,"Attività del Progetto:"]
[]
["ATTIVITA' ADDIZIONALE "]
[]
["a) Finalità generali del servizio e obiettivi specifici di eventuali interventi finalizzati al raggiungimento dell’obiettivo e del suo mantenimento (punto a del DDP)"]
[]
[]
[]
["b) Risultati migliorativi misurabili da ottenere(punto b del DDP)"]
[]
[]
[]
["c) Risultati già ottenuti a seguito di precedenti attività svolte  (punto c del DDP)"]
["se applicabile"]
[]
[]
[]
["d) Tempistiche necessarie per l’implementazione  (punto d del DDP)"]
[]
[]
[]
["e) Scenario di riferimento o gestione ordinaria (definita anche Business as usual - BAU), nell’area oggetto del SE e per confronto con aree assimilabili (indicare eventuali ricerche bibliografiche effettuate per definire questo valore) (punto e del DDP)"]
[]
[]
[]
["f) Responsabilità, per attuazione e monitoraggio successivo del progetto  (punto f del DDP)"]
[]
[]
[]
[]
[]
["g) Definizione delle competenze necessarie e loro evidenze di mantenimento (punto g del DDP)"]
[]
[]
[]
[" h) Risorse (umane e materiali) da mettere in campo (punto h del DDP)"]
[]
[]
[]
["i) Data della prima misurazione dalla quale dovrebbero essere visibili i benefici ottenuti,  (punto j del DDP)"]
["se applicabile"]
[]
[]
[]
[]
[]
[]
[]
[]
[]
[]
["k) Individuazione tramite coordiante GFS delle aree che forniscono il Servizio Ecosistemico (punto a1 del DDP)"]
[]
["Hai verificato che la realizzazione del tuo progetto non causi perdite di carbonio in altre aree? SI/NO"]
[]
[]
["METODOLOGIA DI CALCOLO (descrivi in relazione all'addizionalità scelta) e parametri utilizzati (punto a3 del DDP)"]
[]
[]
[]
["\tMetodo di calcolo implementato se diverso da quanto riportato nello standard (se applicabile) "]
[]
[]
[]
[]
[]
["Eventuale bibliografia di riferimento (punto a4 del DDP)"]
[]
[]
[]
[]
[null,null,null,null,null,null,null,null,"Clicca \"PROCEDI\" per andare al Servizio Ecosistemico SE2 GFS"]

{"sheet":"SE2.GFS","index":2,"n_rows":320,"n_cols":24,"rows_kept":320,"cut":false,"hidden":false,"merged":[[288,4,288,11],[288,12,288,13],[289,4,289,11],[289,12,289,13],[290,4,290,11],[299,19,299,22],[300,19,300,22],[301,19,301,22],[302,19,302,22],[298,15,298,18],[298,19,298,22],[290,12,290,13],[291,4,291,11],[291,12,291,13],[292,4,292,11],[292,12,292,13],[299,15,299,18],[300,15,300,18],[301,15,301,18],[302,15,302,18],[284,4,284,11],[284,12,284,13],[285,4,285,11],[285,12,285,13],[274,0,274,13],[273,4,273,5],[286,4,286,11],[286,12,286,13],[287,4,287,11],[287,12,287,13],[265,4,265,11],[265,12,265,13],[266,4,266,11],[266,12,266,13],[267,4,267,11],[267,12,267,13],[268,4,268,11],[268,12,268,13],[283,12,283,13],[260,4,260,11],[260,12,260,13],[261,4,261,11],[261,12,261,13],[262,4,262,11],[262,12,262,13],[263,4,263,11],[263,12,263,13],[264,4,264,11],[264,12,264,13],[224,7,224,8],[224,9,224,11],[224,12,224,13],[225,4,225,6],[225,7,225,8],[225,9,225,11],[225,12,225,13],[259,4,259,11],[259,12,259,13],[211,4,211,13],[209,0,209,3],[209,4,209,13],[223,0,223,3],[224,0,224,3],[220,4,220,6],[220,7,220,8],[220,9,220,11],[220,12,220,13],[221,4,221,6],[221,7,221,8],[221,9,221,11],[221,12,221,13],[222,4,222,6],[222,7,222,8],[222,9,222,11],[222,12,222,13],[223,4,223,6],[223,7,223,8],[223,9,223,11],[220,0,220,3],[221,0,221,3],[223,12,223,13],[224,4,224,6],[217,12,217,13],[218,4,218,6],[218,7,218,8],[218,9,218,11],[218,12,218,13],[215,0,215,3],[215,4,215,6],[215,7,215,8],[215,9,215,11],[216,4,216,6],[216,7,216,8],[216,9,216,11],[217,7,217,8],[217,9,217,11],[206,0,206,3],[206,4,206,6],[206,7,206,8],[206,9,206,11],[206,12,206,13],[207,0,207,3],[207,4,207,6],[207,7,207,8],[207,9,207,11],[207,12,207,13],[204,4,204,6],[204,7,204,8],[204,9,204,11],[204,12,204,13],[205,0,205,3],[205,4,205,6],[205,7,205,8],[205,9,205,11],[205,12,205,13],[288,0,288,3],[277,0,277,3],[277,4,277,13],[183,4,183,6],[183,7,183,8],[183,9,183,11],[184,4,184,6],[184,7,184,8],[184,9,184,11],[185,4,185,6],[185,7,185,8],[185,9,185,11],[186,4,186,6],[186,7,186,8],[186,9,186,11],[187,4,187,6],[187,7,187,8],[187,9,187,11],[188,4,188,6],[201,7,201,8],[201,9,201,11],[201,12,201,13],[202,4,202,6],[202,12,202,13],[310,0,310,3],[310,4,310,13],[300,0,300,3],[300,4,300,13],[303,0,303,3],[303,4,303,13],[301,0,301,3],[301,4,301,13],[302,0,302,3],[302,4,302,13],[309,0,309,3],[309,4,309,13],[263,0,263,3],[264,0,264,3],[265,0,265,3],[266,0,266,3],[267,0,267,3],[276,0,276,13],[275,0,275,13],[191,0,191,3],[181,4,181,6],[181,7,181,8],[181,9,181,11],[269,0,269,3],[269,4,269,13],[270,0,270,3],[270,4,270,13],[242,12,242,13],[208,0,208,3],[208,4,208,6],[208,7,208,8],[208,9,208,11],[208,12,208,13],[203,0,203,3],[203,4,203,6],[203,7,203,8],[0,1,2,2],[3,0,3,13],[12,1,12,3],[12,4,12,13],[122,0,122,3],[88,0,88,3],[20,0,20,3],[48,0,48,3],[21,0,21,3],[121,0,121,3],[72,0,72,3],[102,4,102,13],[107,0,107,3],[107,4,107,13],[93,0,93,3],[93,4,93,13],[95,0,95,3],[95,4,95,13],[61,0,61,3],[88,4,88,13],[94,0,94,3],[94,4,94,13],[111,0,111,13],[114,4,114,13],[112,0,112,3],[257,0,257,13],[255,0,255,13],[251,0,251,3],[251,4,251,13],[248,0,248,13],[249,0,249,13],[250,0,250,13],[149,0,149,3],[149,4,149,13],[245,0,245,3],[187,0,187,3],[167,0,167,3],[231,0,231,13],[167,4,167,13],[252,0,252,3],[252,4,252,13],[203,9,203,11],[203,12,203,13],[204,0,204,3],[120,12,120,13],[121,4,121,11],[121,12,121,13],[122,4,122,11],[105,0,105,3],[105,4,105,13],[134,0,134,3],[135,0,135,3],[136,0,136,3],[137,0,137,3],[119,12,119,13],[120,4,120,11],[323,9,323,13],[114,0,114,3],[271,4,271,13],[271,0,271,3],[313,0,314,5],[313,6,314,13],[278,0,278,3],[278,4,278,13],[283,0,283,3],[259,0,259,3],[260,0,260,3],[261,0,261,3],[268,0,268,3],[258,0,258,11],[258,12,258,13],[262,0,262,3],[101,4,101,13],[104,0,104,3],[99,0,99,11],[99,12,99,13],[100,4,100,11],[100,12,100,13],[103,0,103,11],[103,12,103,13],[104,4,104,11],[104,12,104,13],[90,0,90,13],[92,0,92,3],[102,0,102,3],[202,7,202,8],[202,9,202,11],[165,12,165,13],[161,0,161,3],[161,4,161,11],[161,12,161,13],[156,0,156,3],[156,4,156,11],[156,12,156,13],[169,0,169,3],[169,4,169,13],[110,0,110,13],[112,4,112,13],[98,0,98,13],[100,0,100,3],[101,0,101,3],[148,0,148,3],[129,0,129,3],[130,0,130,3],[131,0,131,3],[138,0,138,3],[291,0,291,3],[282,0,282,11],[282,12,282,13],[283,4,283,11],[245,4,245,13],[138,12,138,13],[139,4,139,11],[139,12,139,13],[140,4,140,11],[140,12,140,13],[147,0,147,11],[147,12,147,13],[140,0,140,3],[157,0,157,3],[148,4,148,11],[148,12,148,13],[155,0,155,11],[155,12,155,13],[160,0,160,11],[160,12,160,13],[165,0,165,11],[166,4,166,11],[150,0,150,3],[150,4,150,13],[42,0,44,3],[42,4,46,13],[45,0,46,3],[48,4,50,13],[49,0,50,3],[307,0,307,13],[308,0,308,13],[298,0,298,13],[299,0,299,13],[306,0,306,13],[281,0,281,13],[295,0,295,3],[295,4,295,13],[284,0,284,3],[285,0,285,3],[292,0,292,3],[293,0,293,3],[293,4,293,13],[294,0,294,3],[294,4,294,13],[286,0,286,3],[287,0,287,3],[289,0,289,3],[290,0,290,3],[54,0,55,13],[58,0,58,3],[58,4,58,13],[60,0,60,3],[60,4,60,13],[62,0,62,3],[62,4,62,13],[64,0,64,13],[9,0,9,13],[14,0,14,13],[16,0,17,3],[16,4,17,13],[20,4,22,13],[24,0,24,3],[24,4,26,13],[25,0,26,3],[29,0,30,3],[29,4,32,13],[31,0,32,3],[34,4,36,13],[38,0,38,3],[38,4,40,13],[39,0,40,3],[34,0,36,3],[66,0,66,13],[68,0,68,13],[70,0,70,3],[85,0,85,13],[89,0,89,3],[89,4,89,13],[70,4,70,11],[70,12,70,13],[71,4,71,11],[71,12,71,13],[72,4,72,11],[72,12,72,13],[79,4,79,11],[79,12,79,13],[73,0,73,3],[74,0,74,3],[75,0,75,3],[76,0,76,3],[73,4,73,11],[74,4,74,11],[75,4,75,11],[87,0,87,3],[79,0,79,3],[80,0,80,3],[69,0,69,11],[69,12,69,13],[87,4,87,11],[87,12,87,13],[86,0,86,11],[86,12,86,13],[91,0,91,11],[91,12,91,13],[92,4,92,11],[92,12,92,13],[76,4,76,11],[77,4,77,11],[78,4,78,11],[73,12,73,13],[74,12,74,13],[75,12,75,13],[76,12,76,13],[80,4,80,13],[81,0,81,3],[82,0,82,3],[77,12,77,13],[78,12,78,13],[77,0,77,3],[78,0,78,3],[71,0,71,3],[81,4,81,13],[82,4,82,13],[132,0,132,3],[133,0,133,3],[126,0,126,3],[127,0,127,3],[106,0,106,3],[106,4,106,13],[124,12,124,13],[113,0,113,3],[113,4,113,13],[123,0,123,3],[124,0,124,3],[128,0,128,3],[130,4,130,11],[130,12,130,13],[117,0,117,13],[119,0,119,3],[120,0,120,3],[125,0,125,3],[118,0,118,11],[118,12,118,13],[119,4,119,11],[122,12,122,13],[123,4,123,11],[123,12,123,13],[124,4,124,11],[133,4,133,11],[125,4,125,11],[125,12,125,13],[126,4,126,11],[126,12,126,13],[127,4,127,11],[127,12,127,13],[128,4,128,11],[128,12,128,13],[129,4,129,11],[129,12,129,13],[163,4,163,13],[164,0,164,13],[157,4,157,13],[158,0,158,3],[158,4,158,13],[151,0,151,3],[151,4,151,13],[159,0,159,13],[162,0,162,3],[162,4,162,13],[163,0,163,3],[154,0,154,13],[141,0,141,3],[141,4,141,13],[142,0,142,3],[142,4,142,13],[146,0,146,13],[131,4,131,11],[131,12,131,13],[132,4,132,11],[132,12,132,13],[134,12,134,13],[135,4,135,11],[135,12,135,13],[136,4,136,11],[136,12,136,13],[137,4,137,11],[133,12,133,13],[134,4,134,11],[143,0,143,3],[143,4,143,13],[137,12,137,13],[138,4,138,11],[139,0,139,3],[166,12,166,13],[236,0,236,3],[237,0,237,3],[238,0,238,3],[239,0,239,3],[232,0,232,11],[232,12,232,13],[233,4,233,11],[233,12,233,13],[234,4,234,11],[234,12,234,13],[235,4,235,11],[235,12,235,13],[236,4,236,11],[236,12,236,13],[237,4,237,11],[237,12,237,13],[238,4,238,11],[238,12,238,13],[168,0,168,3],[168,4,168,13],[166,0,166,3],[202,0,202,3],[188,0,188,3],[191,12,191,13],[189,4,189,6],[189,7,189,8],[189,9,189,11],[190,4,190,6],[190,7,190,8],[190,9,190,11],[191,4,191,6],[191,7,191,8],[191,9,191,11],[172,0,172,13],[174,0,174,3],[175,0,175,3],[176,0,176,3],[177,0,177,3],[180,0,180,13],[182,0,182,3],[183,0,183,3],[184,0,184,3],[175,4,175,13],[176,4,176,13],[177,4,177,13],[181,0,181,3],[173,0,173,11],[173,12,173,13],[181,12,181,13],[182,4,182,6],[182,7,182,8],[182,9,182,11],[174,4,174,11],[174,12,174,13],[243,0,243,3],[243,4,243,13],[244,0,244,3],[244,4,244,13],[200,0,200,3],[201,0,201,3],[233,0,233,3],[234,0,234,3],[235,0,235,3],[242,0,242,3],[240,0,240,3],[241,0,241,3],[239,4,239,11],[239,12,239,13],[240,4,240,11],[240,12,240,13],[241,4,241,11],[241,12,241,13],[242,4,242,11],[228,0,228,3],[228,4,228,13],[226,0,226,3],[226,4,226,13],[211,0,211,3],[201,4,201,6],[198,0,198,3],[198,4,198,6],[198,7,198,8],[198,9,198,11],[222,0,222,3],[227,0,227,3],[227,4,227,13],[219,12,219,13],[217,0,217,3],[218,0,218,3],[216,12,216,13],[217,4,217,6],[225,0,225,3],[210,0,210,3],[210,4,210,13],[214,0,214,13],[216,0,216,3],[215,12,215,13],[219,0,219,3],[219,4,219,6],[219,7,219,8],[219,9,219,11],[198,12,198,13],[197,0,197,13],[199,0,199,3],[200,4,200,6],[200,7,200,8],[200,9,200,11],[200,12,200,13],[199,4,199,6],[199,7,199,8],[199,9,199,11],[199,12,199,13],[59,0,59,3],[59,4,59,13],[61,4,61,13],[194,0,194,3],[194,4,194,13],[192,0,192,3],[192,4,192,13],[193,0,193,3],[193,4,193,13],[185,0,185,3],[186,0,186,3],[189,0,189,3],[190,0,190,3],[182,12,182,13],[183,12,183,13],[184,12,184,13],[185,12,185,13],[186,12,186,13],[187,12,187,13],[188,12,188,13],[189,12,189,13],[190,12,190,13],[188,7,188,8],[188,9,188,11]]}
[]
[]
[]
["SE2 - TUTELA DELLA BIODIVERSITÀ (FORESTE)"]
[]
[]
[]
[]
[]
["SE2 - TUTELA DELLA BIODIVERSITÀ (FORESTE)"]
[]
[]
[null,"Attività del Progetto:"]
[]
["ATTIVITA' ADDIZIONALE "]
[]
["a) Finalità generali del servizio e obiettivi specifici di eventuali interventi finalizzati al raggiungimento dell’obiettivo e del suo mantenimento (punto a del DDP)"]
[]
[]
[]
["b) Risultati migliorativi e tutelanti misurabili da ottenere (punto b del DDP)"]
["Nota: è possibile che il servizio Ecositemico tutelato mediante questa certificazione non copra l'intera area certiifcata per la GFS PEFC ma solo una parte di essa"]
[]
[]
["c) Risultati già ottenuti a seguito di precedenti attività svolte  (punto c del DDP)"]
[]
[]
[]
[]
["d) Scenario di riferimento o gestione ordinaria (definita anche Business as usual - BAU), nell’area oggetto del SE e per confronto con aree assimilabili (indicare eventuali ricerche bibliografiche effettuate per definire questo valore) (punto e del DDP)"]
[]
[]
[]
[]
["e) Responsabilità, per attuazione e monitoraggio successivo del progetto  (punto f del DDP)"]
[]
[]
[]
["f) Definizione delle competenze necessarie e loro evidenze di mantenimento (punto g del DDP)"]
[]
[]
[]
[" g) Risorse (umane e materiali) da mettere in campo (punto h del DDP)"]
[]
[]
[]
[]
[]
["h) Data della prima misurazione dalla quale dovrebbero essere visibili i benefici ottenuti,  (punto i del DDP)"]
[]
[]
[]
[]
[]
["Per l'applicazione di questa sezione è necessario innanzitutto individuare le UNITA' FORESTALI OMOGENEE  più rappresentative e successivamente compilare la check-list riportata qua sotto per ciascuna unità forestale individuata"]
[]
[]
[]
["Descrizione delle unità forestali omogenee (tipologia, estensione, variabilità interna)"]
["Localizzazione tramite coordinate GPS delle Unità forestali Omogenee interessate dalla certificazione e loro descrizione"]
["Numero di aree di saggio analizzate e motivazione dagli eventuali discostamenti dai valori minimi indicati dallo standard"]
["Localizzazione tramite coordinate GPS delle aree di saggio"]
["Geolocalizzazione degli elementi d’interesse contabilizzati nella valutazione (alberi di grandi dimensioni, dentro-microhabitat, habitat umidi o rocciosi, disturbi"]
[]
["Per gli indicatori rilevati a livello di \"area di saggio\" vanno riportati in maniera evidente nella casella tutti i punteggi rilevati nelle singole aree di saggio utilizzati per ottenere tramite media il punteggio finale dell'Unità Forestale Omogenea "]
[]
["PRINCIPIO 1"]
[]
["1.1.1 - Valutazione della copertura “verticale” della vegetazione nelle diverse fasce di altezza"]
["SPECIFICA QUANTITATIVA\nNota: Indicare scostamenti degli indicatori numerici in funzioni di tipologie di bosco differenti da quelli alpini",null,null,null,null,null,null,null,null,null,null,null,"Punteggio parziale"]
["Numero di strati dell'area di saggio 1",null,null,null,null,null,null,null,null,null,null,null,{"$f":"IF(E71<=2,0)+IF(E71=3,2)+IF(E71>=4,5)","v":0},null,null,"1 o 2 è 0",null,"SE E84 è <=2 allora restituisci 0"]
["Numero di strati dell'area di saggio 2",null,null,null,null,null,null,null,null,null,null,null,0,null,null,"3 è 2",null,"SE E84 è =3 allora restituisci 2"]
["Numero di strati dell'area di saggio 3",null,null,null,null,null,null,null,null,null,null,null,0,null,null,"4 è 5",null,"SE E84 è >=4 allora restituisci 5"]
["Numero di strati dell'area di saggio 4",null,null,null,null,null,null,null,null,null,null,null,0]
["Numero di strati dell'area di saggio 5",null,null,null,null,null,null,null,null,null,null,null,0]
["Numero di strati dell'area di saggio 6",null,null,null,null,null,null,null,null,null,null,null,0]
["Numero di strati dell'area di saggio 7",null,null,null,null,null,null,null,null,null,null,null,0]
["Numero di strati dell'area di saggio 8",null,null,null,null,null,null,null,null,null,null,null,0]
["Numero di strati dell'area di saggio 9",null,null,null,null,null,null,null,null,null,null,null,0]
["Numero di strati dell'area di saggio X",null,null,null,null,null,null,null,null,null,null,null,0]
["Note"]
["Fonti dei dati "]
["Punteggio finale Unità forestale ",null,null,null,{"$f":"IF(COUNTIF(E71:L80,\">-1\")>1,SUM(M71:N80)/COUNTIF(E71:L80,\">-1\"),0)","v":0},null,null,null,null,null,null,null,null,null,null,"è una media","5+0+0/3"]
[]
[]
[" 1.2 .1 a -Rilevazione di specie faunistiche inserite nell’allegato II-IV della Direttiva Habitat, Direttiva Uccelli e le UNITA' FORESTALI OMOGENEE VU, EC, CR inserite all’interno della Lista rossa"]
["SPECIFICA QUANTITATIVA\nNota: Indicare scostamenti degli indicatori numerici in funzioni di tipologie di bosco differenti da quelli alpini",null,null,null,null,null,null,null,null,null,null,null,"Punteggio parziale"]
["Numero delle specie rilevate",null,null,null,null,null,null,null,null,null,null,null,{"$f":"IF(E88<=3,0,IF(E88>=8,5,IF(AND(E88>=4,E88<=7), 2)))","v":0},null,null,"<3 è 0",null,"SE E101 è <=3 allora restituisci 0"]
["Note (indicare specie)",null,null,null,null,null,null,null,null,null,null,null,null,null,null,"4-7 è 2",null,"SE E101 è compreso tra 4-7 allora restituisci 2"]
["Fonte dei dati (es. quali liste rosse si sono utilizzate)",null,null,null,null,null,null,null,null,null,null,null,null,null,null,">8 è 5",null,"SE E101 è >=8 allora restituisci 5"]
[" 1.2 .1 b -Rilevazione di specie floristiche inserite nell’allegato II-IV della Direttiva Habitat e le UNITA' FORESTALI OMOGENEE NT, VU, EN, CR di Lista rossa"]
["SPECIFICA QUANTITATIVA\nNota: Indicare scostamenti degli indicatori numerici in funzioni di tipologie di bosco differenti da quelli alpini",null,null,null,null,null,null,null,null,null,null,null,"Punteggio parziale"]
["Numero delle specie rilevate",null,null,null,null,null,null,null,null,null,null,null,{"$f":"IF(E93<=0,0,IF(E93>=3,5,IF(AND(E93>=1,E93<=2), 2)))","v":0},null,null,"0 è 0",null,"SE E108 è =0 allora restituisci 0"]
["Note (indicare specie)",null,null,null,null,null,null,null,null,null,null,null,null,null,null,"1-2 è 2",null,"SE E108 è compreso tra 1-2 allora restituisci 2"]
["Fonte dei dati (es. quali liste rosse si sono utilizzate)",null,null,null,null,null,null,null,null,null,null,null,null,null,null,">3 è 5",null,"SE E108 è >=3 allora restituisci 5"]
["Punteggio finale dell'unità forestale",null,null,null,{"$f":"SUM(M93,M88)","v":0}]
[]
[]
["1.2.2 - Presenza di aree protette, quali parchi nazionali, regionali o interregionali, riserve naturali, biotopi, SIC e ZPS"]
["SPECIFICA QUANTITATIVA\nNota: Indicare scostamenti degli indicatori numerici in funzioni di tipologie di bosco differenti da quelli alpini",null,null,null,null,null,null,null,null,null,null,null,"Punteggio parziale"]
["Superficie aree protetta/unità forestale (indicare percentuale %)",null,null,null,null,null,null,null,null,null,null,null,{"$f":"IF(E101>=50,2)+IF(E101<50,0)","v":0},null,null,"<50% è 0"]
["Note",null,null,null,null,null,null,null,null,null,null,null,null,null,null,">50% è 2"]
["Fonte dei dati"]
["SPECIFICA QUANTITATIVA\nNota: Indicare scostamenti degli indicatori numerici in funzioni di tipologie di bosco differenti da quelli alpini",null,null,null,null,null,null,null,null,null,null,null,"Punteggio parziale"]
["Superficie Isole di senescenza o similari/unità forestale",null,null,null,null,null,null,null,null,null,null,null,{"$f":"IF(E105<5,0,IF(E105>=10,5,IF(AND(E105>=5,E105<=10), 2)))","v":0},null,null,"<5% è 0",null,"SE E118 è <5 allora restituisci 0"]
["Note",null,null,null,null,null,null,null,null,null,null,null,null,null,null,"5%-10% è 2",null,"SE E118 è compreso tra 5-10 allora restituisci 2"]
["Fonte dei dati",null,null,null,null,null,null,null,null,null,null,null,null,null,null,">10% è 5",null,"SE E118 è >10 allora restituisci 5"]
["Punteggio finale dell'unità forestale (somma dei punteggi relativi alle aree protette e isole di senescenza, con un tetto massimo pari a 5.)",null,null,null,{"$f":"SUM(M101,M105)","v":0}]
[]
[]
["1.3 1 - Elenco delle specie vegetali e animali autoctone all’interno della unità forestali omogenee Forestale (principali)."]
["SPECIFICA QUALITATIVA"]
["Note"]
["Fonte dei dati"]
["Fonte dei dati"]
[]
[]
["1.4 1 - Analisi delle specie arboree all’interno dell'unità forestale "]
["SPECIFICA QUANTITATIVA\nNota: Indicare scostamenti degli indicatori numerici in funzioni di tipologie di bosco differenti da quelli alpini",null,null,null,null,null,null,null,null,null,null,null,"Punteggio parziale"]
["Elenco specie arboree area di saggio 1",null,null,null,null,null,null,null,null,null,null,null,{"$f":"IF(E120<=2,0,IF(E120>=5,5,IF(AND(E120>=3,E120<=4), 2)))","v":0},null,null,"<2 è 0",null,"SE E134 è <2 allora restituisci 0"]
["Elenco specie arbustive area di saggio 1",null,null,null,null,null,null,null,null,null,null,null,{"$f":"IF(E121<=2,0,IF(E121>=5,5,IF(AND(E121>=3,E121<=4), 2)))","v":0},null,null,"3-4 è 2",null,"SE E134 è compreso tra 3-4 allora restituisci 2"]
["Elenco specie arboree area di saggio 2",null,null,null,null,null,null,null,null,null,null,null,0,null,null,">5 è 5",null,"SE E134 è >5 allora restituisci 5"]
["Elenco specie arbustive area di saggio 2",null,null,null,null,null,null,null,null,null,null,null,0]
["Elenco specie arboree area di saggio 2",null,null,null,null,null,null,null,null,null,null,null,0]
["Elenco specie arbustive area di saggio 2",null,null,null,null,null,null,null,null,null,null,null,0]
["Elenco specie arboree area di saggio 3",null,null,null,null,null,null,null,null,null,null,null,0]
["Elenco specie arbustive area di saggio 3",null,null,null,null,null,null,null,null,null,null,null,0]
["Elenco specie arboree area di saggio 4",null,null,null,null,null,null,null,null,null,null,null,0]
["Elenco specie arbustive area di saggio 4",null,null,null,null,null,null,null,null,null,null,null,0]
["Elenco specie arboree area di saggio 5",null,null,null,null,null,null,null,null,null,null,null,0]
["Elenco specie arbustive area di saggio 5",null,null,null,null,null,null,null,null,null,null,null,0]
["Elenco specie arboree area di saggio 6",null,null,null,null,null,null,null,null,null,null,null,0]
["Elenco specie arbustive area di saggio 6",null,null,null,null,null,null,null,null,null,null,null,0]
["Elenco specie arboree area di saggio 7",null,null,null,null,null,null,null,null,null,null,null,0]
["Elenco specie arbustive area di saggio 7",null,null,null,null,null,null,null,null,null,null,null,0]
["Elenco specie arboree area di saggio 8",null,null,null,null,null,null,null,null,null,null,null,0]
["Elenco specie arbustive area di saggio 8",null,null,null,null,null,null,null,null,null,null,null,0]
["Elenco specie arboree area di saggio 9",null,null,null,null,null,null,null,null,null,null,null,0]
["Elenco specie arbustive area di saggio 9",null,null,null,null,null,null,null,null,null,null,null,0]
["Elenco specie arboree area di saggio X",null,null,null,null,null,null,null,null,null,null,null,0]
["Elenco specie arbustive area di saggio X",null,null,null,null,null,null,null,null,null,null,null,0]
["Note"]
["Fonte dei dati"]
["Punteggio finale Unità forestale (esplicitare i punteggi delle singole unità forestali oltre che il loro valore medio)",null,null,null,{"$f":"IF(COUNTIF(E120:L141,\">-1\")>1,SUM(M120:N141)/COUNTIF(E120:L141,\">-1\"),0)","v":0}]
[]
[]
["1.4.2 - Analisi delle specie alloctone invasive presenti all’interno dell'unità forestale"]
["SPECIFICA QUANTITATIVA\nNota: Indicare scostamenti degli indicatori numerici in funzioni di tipologie di bosco differenti da quelli alpini",null,null,null,null,null,null,null,null,null,null,null,"Punteggio parziale"]
["Superficie coperta da alloctone invasive/unità forestale",null,null,null,null,null,null,null,null,null,null,null,{"$f":"IF(E149=0,0,IF(E149>=5,-2,IF(E149<5,-1)))","v":0},null,null,"0 è 0",null,"SE E163 è 0 allora restituisci 0"]
["Note",null,null,null,null,null,null,null,null,null,null,null,null,null,null,"<5 è -1",null,"SE E163 è <5 allora restituisci -1"]
["Fonte dei dati",null,null,null,null,null,null,null,null,null,null,null,null,null,null,">=5 è -2",null,"SE E163 è >5 allora restituisci -2"]
["Punteggio finale dell'unità forestale",null,null,null,{"$f":"M149","v":0}]
[]
[]
["1.5 1 -Rilievo del numero totale delle specie realmente minacciate di scomparsa dalla creazione di infrastrutture (entomofauna, avifauna, mammalofauna, ecc.) e dalle attività forestali (es. cantieri forestali)"]
["SPECIFICA QUANTITATIVA\nNota: Indicare scostamenti degli indicatori numerici in funzioni di tipologie di bosco differenti da quelli alpini",null,null,null,null,null,null,null,null,null,null,null,"Punteggio parziale"]
["Numero totale specie",null,null,null,null,null,null,null,null,null,null,null,{"$f":"IF(E157=0,0,IF(E157=1,-1,IF(E157>=2,-2)))","v":0},null,null,"0 è 0",null,"SE E171 è 0 allora restituisci 0"]
["Note",null,null,null,null,null,null,null,null,null,null,null,null,null,null,"1 è -1",null,"SE E171 è 1 allora restituisci -1"]
["Fonte dei dati",null,null,null,null,null,null,null,null,null,null,null,null,null,null,">=2 è -2",null,"SE E163 è >=2 allora restituisci -2"]
["1.5.2 -Individuazione dei siti di alimentazione, riposo, riproduzione lungo i percorsi dalla avifauna migratoria e loro tutela in realazione alla creazione di infrastrutture e attività forestale"]
["SPECIFICA QUANTITATIVA\nNota: Indicare scostamenti degli indicatori numerici in funzioni di tipologie di bosco differenti da quelli alpini",null,null,null,null,null,null,null,null,null,null,null,"Punteggio parziale"]
["Siti",null,null,null,null,null,null,null,null,null,null,null,{"$f":"IF(E162=0,0,IF(E162=1,-1,IF(E162>=2,-2)))","v":0},null,null,"0 è 0",null,"SE E176 è 0 allora restituisci 0"]
["Note",null,null,null,null,null,null,null,null,null,null,null,null,null,null,"1 è -1",null,"SE E176 è 1 allora restituisci -1"]
["Fonte dei dati",null,null,null,null,null,null,null,null,null,null,null,null,null,null,">=2 è -2",null,"SE E166 è >=2 allora restituisci -2"]
["1.5.3 - Disturbi o danni agli ecosistemi forestali legati alla presenza antropica nella unità forestali omogenee Forestale"]
["SPECIFICA QUANTITATIVA\nNota: Indicare scostamenti degli indicatori numerici in funzioni di tipologie di bosco differenti da quelli alpini",null,null,null,null,null,null,null,null,null,null,null,"Punteggio parziale"]
["Fattori disturbanti",null,null,null,null,null,null,null,null,null,null,null,{"$f":"IF(E167=0,0,IF(E167=1,-1,IF(E167>=2,-2)))","v":0},null,null,"0 è 0",null,"SE E181 è 0 allora restituisci 0"]
["Note",null,null,null,null,null,null,null,null,null,null,null,null,null,null,"1 è -1",null,"SE E181 è 1 allora restituisci -1"]
["Fonte dei dati",null,null,null,null,null,null,null,null,null,null,null,null,null,null,">=2 è -2",null,"SE E181 è >=2 allora restituisci -2"]
["Punteggio finale dell'unità forestale",null,null,null,{"$f":"SUM(M157,M162,M167)","v":0}]
[]
[]
["1.6.1 -Descrizione e implementazione delle misure per ridurre la pressione delle popolazioni animali domestiche e selvatiche"]
["SPECIFICA QUANTITATIVA\nNota: Indicare scostamenti degli indicatori numerici in funzioni di tipologie di bosco differenti da quelli alpini",null,null,null,null,null,null,null,null,null,null,null,"Punteggio parziale",null,null,"<30% è 0",null,"SE E189 è <30 allora restituisci 0"]
["Superficie danneggiata (% su 100 piante)",null,null,null,null,null,null,null,null,null,null,null,{"$f":"IF(E175<30,0,IF(E175>=70,-2,IF(AND(E175>=30,E175<=70),-1)))","v":0},null,null,"30%-70% è -1",null,"SE E189 è compreso tra 30-70 allora restituisci -1"]
["Note",null,null,null,null,null,null,null,null,null,null,null,null,null,null,">=70% è -2",null,"SE E189 è >70 allora restituisci -2"]
["Fonte dei dati "]
["Punteggio finale dell'unità forestale",null,null,null,{"$f":"M175","v":0}]
[]
[]
[" 1.7.1 - Stima della necromassa in piedi "]
["SPECIFICA QUANTITATIVA\nNota: Indicare scostamenti degli indicatori numerici in funzioni di tipologie di bosco differenti da quelli alpini",null,null,null,"N snag",null,null,"Punteggio parziale",null,"Hcum (Bonus)",null,null,"Bonus",null,null,"parziale","bonus"]
["N snag  per Area di saggio 1 (+  bonus)",null,null,null,null,null,null,{"$f":"IF(E183<=1,0,IF(E183>=5,5,IF(AND(E183>=2,E183<=4),2)))","v":0},null,null,null,null,{"$f":"IF(E183>=5,0,IF(J183<15,0,IF(J183>=30,2,IF(J183>=30,2,IF(AND(J183>=15,J183<=29),1)))))","v":0},null,null,"<=1 è 0",">15m è +1"]
["N snag  per Area di saggio 2 (+  bonus)",null,null,null,null,null,null,{"$f":"IF(E184<=1,0,IF(E184>=5,5,IF(AND(E184>=2,E184<=4),2)))","v":0},null,null,null,null,{"$f":"IF(E184>=5,0,IF(J184<15,0,IF(J184>=30,2,IF(J184>=30,2,IF(AND(J184>=15,J184<=29),1)))))","v":0},null,null,"2-4 è 2",">30m è +2"]
["N snag  per Area di saggio 3 (+  bonus)",null,null,null,null,null,null,0,null,null,null,null,0,null,null,">=5 è 5","Se Nsnag >5 allora 0 bonus"]
["N snag  per Area di saggio 4 (+  bonus)",null,null,null,null,null,null,0,null,null,null,null,0]
["N snag  per Area di saggio 5 (+  bonus)",null,null,null,null,null,null,0,null,null,null,null,0]
["N snag  per Area di saggio 6 (+  bonus)",null,null,null,null,null,null,0,null,null,null,null,0]
["N snag  per Area di saggio 7 (+  bonus)",null,null,null,null,null,null,0,null,null,null,null,0]
["N snag  per Area di saggio 8 (+  bonus)",null,null,null,null,null,null,0,null,null,null,null,0]
["N snag  per Area di saggio 9 (+  bonus)",null,null,null,null,null,null,0,null,null,null,null,0]
["N snag  per Area di saggio X (+  bonus)",null,null,null,null,null,null,0,null,null,null,null,0]
["Note"]
["Fonte dei dati "]
["Punteggio finale Unità forestale ",null,null,null,{"$f":"Q195+M183+M184+M185+M186+M187+M188+M190+M189+M191+M192","v":0},null,null,null,null,null,null,null,null,null,null,{"$f":"SUM(H183:I192)/COUNTIF(E183:G192,\">-1\")","v":{"$error":"#DIV/0!"}},{"$f":"IF(COUNTIF(E183:G192,\">-1\")>1,SUM(H183:I192)/COUNTIF(E183:G192,\">-1\"),0)","v":0}]
[]
[]
[" 1.7.2 - Stima della necromassa a terra",null,null,null,null,null,null,null,null,null,null,null,null,null,null,"parziale","bonus"]
["SPECIFICA QUANTITATIVA\nNota: Indicare scostamenti degli indicatori numerici in funzioni di tipologie di bosco differenti da quelli alpini",null,null,null,"N log o ceppaie",null,null,"Punteggio parziale",null,"Lcum (Bonus)",null,null,"Bonus",null,null,"<=3 è 0",">15m è +1"]
["N log o ceppaie per Area di saggio 1 (+  bonus)",null,null,null,null,null,null,{"$f":"IF(E200<=3,0,IF(E200>=6,5,IF(AND(E200>=4,E200<=5),2)))","v":0},null,null,null,null,{"$f":"IF(E200>=6,0,IF(J200<15,0,IF(J200>=30,2,IF(J200>=30,2,IF(AND(J200>=15,J200<=29),1)))))","v":0},null,null,"4-5 è 2",">30m è +2"]
["N log o ceppaie per Area di saggio 2 (+  bonus)",null,null,null,null,null,null,{"$f":"IF(E201<=3,0,IF(E201>=6,5,IF(AND(E201>=4,E201<=5),2)))","v":0},null,null,null,null,{"$f":"IF(E201>=5,0,IF(J201<15,0,IF(J201>=30,2,IF(J201>=30,2,IF(AND(J201>=15,J201<=29),1)))))","v":0},null,null,">=6 è 5","Se Nlog >5 allora 0 bonus"]
["N log o ceppaie per Area di saggio 3 (+  bonus)",null,null,null,null,null,null,0,null,null,null,null,0]
["N log o ceppaie per Area di saggio 4 (+  bonus)",null,null,null,null,null,null,0,null,null,null,null,0]
["N log o ceppaie per Area di saggio 5 (+  bonus)",null,null,null,null,null,null,0,null,null,null,null,0]
["N log o ceppaie per Area di saggio 6 (+  bonus)",null,null,null,null,null,null,0,null,null,null,null,0]
["N log o ceppaie per Area di saggio 7 (+  bonus)",null,null,null,null,null,null,0,null,null,null,null,0]
["N log o ceppaie per Area di saggio 8 (+  bonus)",null,null,null,null,null,null,0,null,null,null,null,0]
["N log o ceppaie per Area di saggio 9 (+  bonus)",null,null,null,null,null,null,0,null,null,null,null,0]
["N log o ceppaie per Area di saggio X (+  bonus)",null,null,null,null,null,null,0,null,null,null,null,0]
["Note"]
["Fonte dei dati "]
["Punteggio finale Unità forestale (esplicitare i punteggi delle singole unità forestali oltre che il loro valore medio)",null,null,null,{"$f":"M200+M201+M202+M203+M204+M205+M206+M207+M208+M209+P212","v":0},null,null,null,null,null,null,null,null,null,null,{"$f":"IF(COUNTIF(E200:G209,\">-1\")>1,SUM(H200:I209)/COUNTIF(E200:G209,\">-1\"),0)","v":0}]
[]
[]
[" 1.8.1- Rilievo delle piante di grandi dimensioni  ",null,null,null,null,null,null,null,null,null,null,null,null,null,null,"parziale","bonus"]
["SPECIFICA QUANTITATIVA\nNota: Indicare scostamenti degli indicatori numerici in funzioni di tipologie di bosco differenti da quelli alpini",null,null,null,"N piante",null,null,"Punteggio parziale",null,"N Specie (Bonus)",null,null,"Bonus",null,null,"<=1 è 0",0]
["N piante per Area di saggio 1 (+  bonus)",null,null,null,null,null,null,{"$f":"IF(E217<=1,0,IF(E217>=6,5,IF(AND(E217>=2,E217<=5),2)))","v":0},null,null,null,null,{"$f":"IF(E217<=1,0,IF(E217>=6,0,IF(J217=2,2,IF(J217>=3,3,IF(J217<2,0)))))","v":0},null,null,"2-5 è 2","2 specie 2 - +3 specie 3"]
["N piante per Area di saggio 2 (+  bonus)",null,null,null,null,null,null,{"$f":"IF(E218<=1,0,IF(E218>=6,5,IF(AND(E218>=2,E218<=5),2)))","v":0},null,null,null,null,{"$f":"IF(E218<=1,0,IF(E218>=6,0,IF(J218=2,2,IF(J218>=3,3,IF(J218<2,0)))))","v":0},null,null,">=6 è 5",0]
["N piante per Area di saggio 3 (+  bonus)",null,null,null,null,null,null,0,null,null,null,null,0]
["N piante per Area di saggio 4 (+  bonus)",null,null,null,null,null,null,0,null,null,null,null,0]
["N piante per Area di saggio 5 (+  bonus)",null,null,null,null,null,null,0,null,null,null,null,0]
["N piante per Area di saggio 6 (+  bonus)",null,null,null,null,null,null,0,null,null,null,null,0]
["N piante per Area di saggio 7 (+  bonus)",null,null,null,null,null,null,0,null,null,null,null,0]
["N piante per Area di saggio 8 (+  bonus)",null,null,null,null,null,null,0,null,null,null,null,0]
["N piante per Area di saggio 9 (+  bonus)",null,null,null,null,null,null,0,null,null,null,null,0]
["N piante per Area di saggio X (+  bonus)",null,null,null,null,null,null,0,null,null,null,null,0]
["Note"]
["Fonte dei dati "]
["Punteggio finale Unità forestale",null,null,null,{"$f":"P229+M217+M218+M219+M220+M221+M222+M223+M224+M225+M226","v":0},null,null,null,null,null,null,null,null,null,null,{"$f":"IF(COUNTIF(E217:G226,\">-1\")>1,SUM(H217:I226)/COUNTIF(E217:G226,\">-1\"),0)","v":0}]
[]
[]
["1.8.2 - Rilievo di habitat umidi o rocciosi"]
["SPECIFICA QUANTITATIVA\nNota: Indicare scostamenti degli indicatori numerici in funzioni di tipologie di bosco differenti da quelli alpini",null,null,null,null,null,null,null,null,null,null,null,"Punteggio parziale"]
["Elementi nell'Area di saggio 1 ",null,null,null,null,null,null,null,null,null,null,null,{"$f":"IF(E234<=1,0,IF(E234>=4,5,IF(AND(E234>=2,E234<=3),2)))","v":0},null,null,"<=1 è 0"]
["Elementi nell'Area di saggio 2 ",null,null,null,null,null,null,null,null,null,null,null,{"$f":"IF(E235<=1,0,IF(E235>=4,5,IF(AND(E235>=2,E235<=3),2)))","v":0},null,null,"2-3 è 2"]
["Elementi nell'Area di saggio 3 ",null,null,null,null,null,null,null,null,null,null,null,0,null,null,">=4 è 5"]
["Elementi nell'Area di saggio 4",null,null,null,null,null,null,null,null,null,null,null,0]
["Elementi nell'Area di saggio 5",null,null,null,null,null,null,null,null,null,null,null,0]
["Elementi nell'Area di saggio 6",null,null,null,null,null,null,null,null,null,null,null,0]
["Elementi nell'Area di saggio 7",null,null,null,null,null,null,null,null,null,null,null,0]
["Elementi nell'Area di saggio 8",null,null,null,null,null,null,null,null,null,null,null,0]
["Elementi nell'Area di saggio 9",null,null,null,null,null,null,null,null,null,null,null,0]
["Elementi nell'Area di saggio X ",null,null,null,null,null,null,null,null,null,null,null,0]
["Note"]
["Fonte dei dati"]
["Punteggio finale Unità forestale ",null,null,null,{"$f":"IF(COUNTIF(E234:L243,\">-1\")>1,SUM(M234:N243)/COUNTIF(E234:L243,\">-1\"),0)","v":0}]
[]
[]
["1.9.1 - Valutazione delle attività nelle zone confinanti che possono influenzare la tutela delle aree Rete Natura 2000"]
["SPECIFICA QUALITATIVA"]
[]
["Note"]
["Fonte dei dati "]
[]
[]
["PRINCIPIO 2"]
[]
["2.1.1 Alberi viventi con dendro-microhabitat"]
["SPECIFICA QUANTITATIVA",null,null,null,null,null,null,null,null,null,null,null,"Punteggio parziale"]
["Dendro-microhabitat nell'Area di saggio 1 ",null,null,null,null,null,null,null,null,null,null,null,{"$f":"IF(E260<10,0,IF(E260>=16,5,IF(AND(E260>=10,E260<=15),2)))","v":0},null,null,"<10 è 0"]
["Dendro-microhabitat nell'Area di saggio 2",null,null,null,null,null,null,null,null,null,null,null,{"$f":"IF(E261<10,0,IF(E261>=16,5,IF(AND(E261>=10,E261<=15),2)))","v":0},null,null,"10-15 è 2"]
["Dendro-microhabitat nell'Area di saggio 3",null,null,null,null,null,null,null,null,null,null,null,0,null,null,">=16 è 5"]
["Dendro-microhabitat nell'Area di saggio 4",null,null,null,null,null,null,null,null,null,null,null,0]
["Dendro-microhabitat nell'Area di saggio 5",null,null,null,null,null,null,null,null,null,null,null,0]
["Dendro-microhabitat nell'Area di saggio 6",null,null,null,null,null,null,null,null,null,null,null,0]
["Dendro-microhabitat nell'Area di saggio 7",null,null,null,null,null,null,null,null,null,null,null,0]
["Dendro-microhabitat nell'Area di saggio 8",null,null,null,null,null,null,null,null,null,null,null,0]
["Dendro-microhabitat nell'Area di saggio 9",null,null,null,null,null,null,null,null,null,null,null,0]
["Dendro-microhabitat nell'Area di saggio X",null,null,null,null,null,null,null,null,null,null,null,0]
["Nota:  Indicare scostamenti degli indicatori numerici in funzioni di tipologie di bosco differenti da quelli alpini"]
["Fonte dei dati "]
["Punteggio finale Unità forestale ",null,null,null,{"$f":"IF(COUNTIF(E260:L269,\">-1\")>1,SUM(M260:N269)/COUNTIF(E260:L269,\">-1\"),0)","v":0}]
[]
[]
["2.2.1  Dimostrare la presenza di siti riproduttivi di specie d’interesse faunistico e le attività realizzate nella tutela dei siti riproduttivi (macromammiferi)"]
["SPECIFICA QUALITATIVA"]
[]
["Note"]
["Fonte dei dati "]
[]
[]
["2.2.2 - Contare il numero totale di fori di picidi"]
["SPECIFICA QUANTITATIVA",null,null,null,null,null,null,null,null,null,null,null,"Punteggio parziale"]
["N fori nell'Area di saggio 1 ",null,null,null,null,null,null,null,null,null,null,null,{"$f":"IF(E284<0.1,0,IF(E284>=0.25,5,IF(AND(E284>=0.1,E284<=0.25),2)))","v":0},null,null,"<0,1 è 0"]
["N fori nell'Area di saggio 2",null,null,null,null,null,null,null,null,null,null,null,{"$f":"IF(E285<0.1,0,IF(E285>=0.25,5,IF(AND(E285>=0.1,E285<=0.25),2)))","v":0},null,null,"0,1-0,25 è 2"]
["N fori nell'Area di saggio 3",null,null,null,null,null,null,null,null,null,null,null,0,null,null,">=0,25 è 5"]
["N fori nell'Area di saggio 4",null,null,null,null,null,null,null,null,null,null,null,0]
["N fori nell'Area di saggio 5",null,null,null,null,null,null,null,null,null,null,null,0]
["N fori nell'Area di saggio 6",null,null,null,null,null,null,null,null,null,null,null,0]
["N fori nell'Area di saggio 7",null,null,null,null,null,null,null,null,null,null,null,0]
["N fori nell'Area di saggio 8",null,null,null,null,null,null,null,null,null,null,null,0]
["N fori nell'Area di saggio 9",null,null,null,null,null,null,null,null,null,null,null,0]
["N fori nell'Area di saggio X",null,null,null,null,null,null,null,null,null,null,null,0]
["Note"]
["Fonte dei dati "]
["Punteggio finale Unità forestale",null,null,null,{"$f":"IF(COUNTIF(E284:L293,\">-1\")>1,SUM(M284:N293)/COUNTIF(E284:L293,\">-1\"),0)","v":0}]
[]
[]
[" 2.3.1 Valutazione dell’incidenza complessiva di aree aperte, o comunque con vegetazione di altezza inferiore a 1 m",null,null,null,null,null,null,null,null,null,null,null,null,null,null,"percentuale aree aperte/cat forestale",null,null,null,"aree aperte/1000m di transetto",null,null,null,"punteggio"]
["SPECIFICA QUANTITATIVA",null,null,null,null,null,null,null,null,null,null,null,null,null,null,"<1%",null,null,null,"0-2",null,null,null,0]
["Numero radure nell'unità forestale omogenea",null,null,null,null,null,null,null,null,null,null,null,null,null,null,"1%-5%",null,null,null,"3-9",null,null,null,2]
["Note",null,null,null,null,null,null,null,null,null,null,null,null,null,null,"5%-10%",null,null,null,"10-17",null,null,null,5]
["Fonte dei dati ",null,null,null,null,null,null,null,null,null,null,null,null,null,null,">10%",null,null,null,">17",null,null,null,2]
["Punteggio finale unità forestale ",null,null,null,null,null,null,null,null,null,null,null,null,null,null,"Inserire il punteggio ottenuto in riferimento alla tabella sopra"]
[]
[]
["2.4.1 - Presenza di elementi di connessione ecologica, come fontanili, punti di acqua, filari di alberi, boschi ripariali, ecc"]
["SPECIFICA QUALITATIVA"]
[]
["Note"]
["Fonte dei dati "]
[]
[]
["Punteggio totale unità forestali omogenee ",null,null,null,null,null,{"$f":"SUM(E83+E96+E108+E144+E152+E170+E178+E195+E212+E246+E272+E296+E304)","v":0}]
[]
[]
[]
[]
[]
[null,null,null,null,null,null,null,null,"Clicca \"PROCEDI\" per andare al Servizio Ecosistemico SE2 GSA"]

{"sheet":"SE2.GSA","index":3,"n_rows":240,"n_cols":10,"rows_kept":240,"cut":false,"hidden":false,"merged":[[230,0,230,13],[91,0,91,8],[91,9,91,13],[109,0,109,8],[109,9,109,13],[128,0,128,8],[128,9,128,13],[145,0,145,8],[145,9,145,13],[164,0,164,8],[164,9,164,13],[179,0,179,8],[179,9,179,13],[197,0,197,8],[197,9,197,13],[211,0,211,8],[211,9,211,13],[97,9,98,13],[99,9,99,13],[159,9,160,13],[154,0,154,8],[156,0,156,8],[158,0,158,8],[158,9,158,13],[155,0,155,8],[201,0,201,8],[204,0,204,8],[202,0,202,8],[203,0,203,8],[200,0,200,8],[200,9,200,13],[193,0,193,8],[193,9,193,13],[196,0,196,13],[198,0,198,8],[199,0,199,8],[201,9,202,13],[203,9,203,13],[204,9,204,13],[198,9,199,13],[191,9,192,13],[192,0,192,8],[194,0,194,13],[195,0,195,8],[195,9,195,13],[187,0,187,8],[187,9,187,13],[188,0,188,8],[154,9,154,13],[155,9,155,13],[171,9,171,13],[172,9,172,13],[107,9,107,13],[126,0,126,8],[126,9,126,13],[143,0,143,8],[143,9,143,13],[168,0,168,8],[168,9,168,13],[169,0,169,8],[171,0,171,8],[162,0,162,8],[162,9,162,13],[160,0,160,8],[157,0,157,8],[156,9,157,13],[148,0,148,8],[149,0,149,8],[151,0,151,8],[153,0,153,8],[153,9,153,13],[159,0,159,8],[205,9,205,13],[212,9,213,13],[210,0,210,13],[206,0,206,8],[212,0,212,8],[207,0,207,8],[206,9,207,13],[208,0,208,13],[209,0,209,8],[209,9,209,13],[205,0,205,8],[102,9,102,13],[88,0,88,13],[70,0,70,8],[70,9,70,13],[89,0,89,8],[89,9,89,13],[81,0,81,8],[94,0,94,8],[94,9,94,13],[95,0,95,8],[80,9,81,13],[77,9,78,13],[78,0,78,8],[75,9,76,13],[100,9,101,13],[231,0,232,5],[231,6,232,13],[95,9,96,13],[96,0,96,8],[92,9,93,13],[93,0,93,8],[86,9,87,13],[87,0,87,8],[84,9,85,13],[85,0,85,8],[227,0,227,8],[228,0,228,8],[229,0,229,8],[227,9,227,13],[228,9,228,13],[106,0,106,13],[125,0,125,13],[142,0,142,13],[161,0,161,13],[110,9,111,13],[112,9,112,13],[113,9,114,13],[115,9,115,13],[107,0,107,8],[229,9,229,13],[213,0,213,8],[215,0,215,8],[215,9,215,13],[219,0,219,8],[223,0,223,8],[221,0,221,8],[220,0,220,8],[222,0,222,8],[225,0,225,13],[226,0,226,13],[214,0,214,8],[214,9,214,13],[216,0,216,8],[216,9,216,13],[217,0,217,8],[217,9,217,13],[218,0,218,8],[224,0,224,13],[218,9,219,13],[220,9,221,13],[222,9,223,13],[188,9,188,13],[189,0,189,8],[191,0,191,8],[189,9,190,13],[190,0,190,8],[182,0,182,8],[184,0,184,8],[184,9,184,13],[185,0,185,8],[185,9,185,13],[186,0,186,8],[186,9,186,13],[182,9,183,13],[183,0,183,8],[174,0,174,13],[175,0,175,8],[175,9,175,13],[178,0,178,13],[180,0,180,8],[180,9,181,13],[181,0,181,8],[176,0,176,13],[177,0,177,8],[177,9,177,13],[173,0,173,8],[173,9,173,13],[172,0,172,8],[169,9,170,13],[170,0,170,8],[163,0,163,13],[165,0,165,8],[165,9,165,13],[166,0,166,8],[166,9,166,13],[167,0,167,8],[167,9,167,13],[151,9,152,13],[152,0,152,8],[149,9,150,13],[150,0,150,8],[147,9,148,13],[141,0,141,8],[141,9,141,13],[144,0,144,13],[146,0,146,8],[146,9,146,13],[147,0,147,8],[124,0,124,8],[124,9,124,13],[117,0,117,8],[119,0,119,8],[105,0,105,8],[105,9,105,13],[3,0,3,13],[75,0,75,8],[77,0,77,8],[79,0,79,8],[71,0,71,13],[72,0,72,8],[72,9,72,13],[73,0,73,8],[79,9,79,13],[4,0,4,13],[6,1,6,3],[6,4,6,13],[8,0,8,13],[10,0,11,3],[10,4,11,13],[14,0,14,3],[113,0,113,8],[116,0,116,8],[14,4,18,13],[15,0,15,3],[20,0,20,3],[100,0,100,8],[103,0,103,8],[97,0,97,8],[103,9,104,13],[104,0,104,8],[101,0,101,8],[102,0,102,8],[98,0,98,8],[99,0,99,8],[84,0,84,8],[90,0,90,13],[92,0,92,8],[86,0,86,8],[80,0,80,8],[82,0,82,8],[74,0,74,8],[82,9,83,13],[83,0,83,8],[20,4,22,13],[24,4,26,13],[33,0,33,3],[21,0,22,3],[119,9,119,13],[120,0,120,8],[120,9,120,13],[122,9,123,13],[123,0,123,8],[117,9,118,13],[118,0,118,8],[76,0,76,8],[73,9,74,13],[121,0,121,13],[122,0,122,8],[116,9,116,13],[108,0,108,13],[110,0,110,8],[114,0,114,8],[115,0,115,8],[111,0,111,8],[112,0,112,8],[26,0,26,3],[28,0,29,3],[28,4,31,13],[30,0,31,3],[33,4,35,13],[133,0,133,8],[135,0,135,8],[135,9,135,13],[127,0,127,13],[129,0,129,8],[131,0,131,8],[134,0,134,8],[133,9,134,13],[131,9,132,13],[132,0,132,8],[129,9,130,13],[130,0,130,8],[139,0,139,8],[139,9,139,13],[140,0,140,8],[140,9,140,13],[136,0,136,8],[136,9,136,13],[137,0,137,8],[137,9,137,13],[138,0,138,8],[138,9,138,13],[64,0,65,3],[64,4,67,13],[66,0,67,3],[24,0,25,3],[47,0,48,3],[47,4,48,13],[51,4,54,13],[56,4,58,13],[57,0,58,3],[60,0,61,3],[60,4,62,13],[62,0,62,3],[34,0,34,3],[35,0,35,3],[37,0,37,3],[37,4,39,13],[38,0,39,3],[41,0,43,3],[41,4,45,13],[44,0,45,3],[51,0,51,3],[56,0,56,3]]}
[]
[]
[]
["SE2 - TUTELA DELLA BIODIVERSITÀ (PIANTAGIONI)"]
["Biodiversity Friend® Check List: MODULO INTEGRATO ESCLUSIVO PER AZIENDE SOTTOPOSTE A GESTIONE SOSTENIBILE DELLE PIANTAGIONI ARBOREE (GSA) "]
[]
[null,"Attività del Progetto:"]
[]
["ATTIVITA' ADDIZIONALE "]
[]
["a) Finalità generali del servizio e obiettivi specifici di eventuali interventi finalizzati al raggiungimento dell’obiettivo e del suo mantenimento (punto a del DDP)"]
[]
[]
[]
["b) Risultati migliorativi e tutelanti misurabili da ottenere (punto b del DDP)"]
["Nota: è possibile che il servizio Ecositemico tutelato mediante questa certificazione non copra l'intera area certiifcata per la GFS PEFC ma solo una parte di essa"]
[]
[]
[]
[]
["c) Risultati già ottenuti a seguito di precedenti attività svolte  (punto c del DDP)"]
[]
[]
[]
["d) Scenario di riferimento o gestione ordinaria (definita anche Business as usual - BAU), nell’area oggetto del SE e per confronto con aree assimilabili (indicare eventuali ricerche bibliografiche effettuate per definire questo valore) (punto e del DDP)"]
[]
[]
[]
["e) Responsabilità, per attuazione e monitoraggio successivo del progetto  (punto f del DDP)"]
[]
[]
[]
[]
["f) Definizione delle competenze necessarie e loro evidenze di mantenimento (punto g del DDP)"]
[]
[]
[]
[" g) Risorse (umane e materiali) da mettere in campo (punto h del DDP)"]
[]
[]
[]
["h) Data della prima misurazione dalla quale dovrebbero essere visibili i benefici ottenuti,  (punto i del DDP)"]
[]
[]
[]
[]
[]
["i) Autodichiarazione della sussistenza dei prerequisiti relativi alla responsabilità e sostenibilità economica e sociale (punto c2 del DDP)"]
[]
[]
[]
["l) Elenco delle specie arboree e arbustive autoctone da utilizzare per l'impianto di boschi e siepi in agrosistemi italiani  (punto c3 del DDP)"]
[]
[]
[]
[]
["m) Attestato di verifica della conformità allo standard BF rilasciato da WBAP   (punto c7 del DDP)"]
[]
[]
[]
["n) Caratteristiche chimico-fisiche e batteriologiche delle acque sotterranee e superficiali per uso irriguo (punto c5 del DDP)"]
[]
[]
[]
["o) Localizzazione tramite coordinate GPS delle piantagioni interessate dalla certificazione e loro descrizione  (punto c9 del DDP)"]
[]
[]
[]
[]
[]
["1. MODELLO COLTURALE SOSTENIBILE",null,null,null,null,null,null,null,null,"(PUNTI 13)"]
["Per raggiungere questi risultati in un contesto di buone pratiche agricole coerenti l’azienda ha attuato:"]
["AZIONI",null,null,null,null,null,null,null,null,"PUNTI"]
["1.1. Il metodo di produzione e di gestione di agrofarmaci e presidi fitosanitari (max punti 4)\nl’azienda applica uno dei seguenti sistemi di controllo di parassiti e malerbe (indicare il principale e solo uno):\n• Agricoltura Biologica in base al Reg. CE 834/2007, 834/2021 e 889/2008, o equivalente in altri Paesi riconosciuti dall’UE (JAS, BioSuisse, NOP, IFOAM), o Biodinamica, certificata da ente accreditato. (punti 4)\n• Agricoltura Biologica o Biodinamica non certificata, ma conforme agli standard di riferimento, tra cui IFOAM (punti 3)\n• Produzione integrata (PI). Strategia per il monitoraggio di parassiti malerbe e malattie (lotta integrata) che prescrive misure preventive, integrate con l’uso mirato di agrofarmaci e presidi fitosanitari, a bassa tossicità. Il requisito è da ritenersi soddisfatto se la PI è conforme a linee guida nazionali o regionali e/o è certificata da Odc, in relazione almeno al gruppo di colture oggetto dello Standard. (punti 2)\n• applicazione dei principi della Produzione integrata, Biologica o Biodinamica sulla base di Disciplinari privati, frutto dell’esperienza professionale (punti 1) (applicabile solo in assenza di qualsiasi regolamentazione ufficiale).\n\n"]
["SE AZIENDA CERTIFICATA PEFC VENGONO RICONOSCIUTI ALMENO PUNTI 2\n(rif. Prod. Integrata)"]
["1.2. Metodi di controllo biologico (punti 2)\nDevono essere applicate nell’area certificata BF almeno 2 delle seguenti 3 strategie contro le avversità biotiche:\n• trattamenti con bio-antagonisti (B. thuringiensis, Beauveria bassiana, etc.) e/o sostanze organiche naturali (alghe, propoli, ecc.);\n• lanci di insetti utili (predatori, parassiti) e/o uso di altri sistemi biologici (confusione sessuale, trappole massive, ecc.);\n• altre strategie innovative per prevenire e controllare parassiti/malattie che non comportino l’uso di agrofarmaci o presidi fitosanitari.\n\n"]
["SE AZIENDA CERTIFICATA PEFC VENGONO RICONOSCIUTI PUNTI 2\n(rif. PEFC ITA 1004-1:2015 Allegati 1 – 2- 3 Norme tecniche PEFC)\n"]
["1.3. Formazione (punti 1)\nA tutti gli operatori aziendali che eseguono trattamenti viene applicata una formazione specifica annuale (oltre al possesso di patentino, dove questo documento è obbligatorio) sull’uso sostenibile e sicuro degli agrofarmaci e de presidi fitosanitari, tenuta da Enti o Esperti in grado di rilasciare attestati di formazione.\n"]
["SE AZIENDA CERTIFICATA PEFC VIENE RICONOSCIUTO 1 PUNTO \n(rif. PEFC ITA 1004-1:2015 Criterio 6, Pratiche di gestione, lettera “e”))\n"]
["1.4. Irroratrici (punti 1)\nL’azienda utilizza metodi di taratura, tecniche, apparecchi, in grado di dimostrare in modo evidente la riduzione quantità di prodotto e/o derive/perdite di miscela nel suolo/aria.\nIndicare almeno 2 delle seguenti opzioni:\n• esecuzione della manutenzione ordinaria dell'apparecchiatura per la diffusione meccanizzata degli agrofarmaci (ispezione visiva dello stato dell'apparecchiatura e verifica documentale);\n• la calibrazione dell'apparecchiatura di distribuzione, ove applicabile e/o previsto dalle disposizioni di legge;\n• utilizzo di macchine spray con tecnologia che consente di ridurre le derive.\n"]
["1.5. Riduzione degli input chimici / Tossicità degli agroFarmaci e dei presidi fitosanitari (punti 1)\nViene proibito in azienda l’uso di tutti gli agrofarmaci e dei presidi fitosanitari valutati dalle Fonti ufficiali o attendibili (es. EFSA, Ministero della Salute, OMS, ecc.) come estremamente pericolosi per la salute dei consumatori.\nIn particolare, deve essere escluso l’uso di prodotti presenti nelle Classi 1A e 1B della WHO (The WHO recommended classification of pesticides by hazard and guidelines to classification: 2009)\n\n"]
["SE AZIENDA CERTIFICATA PEFC VIENE RICONOSCIUTO 1 PUNTO \n(rif. PEFC ITA 1004-1:2015 Criterio 2, Pratiche di gestione, lettera “c”))\n"]
["1.6. Sistemi di controllo delle malerbe a basso impatto (punti 1)\nViene fatto uso nelle colture soggette a certificazione BF di sistemi naturali per il controllo delle infestanti, alternativi ai mezzi chimici (pirodiserbo, zoo-diserbo, pacciamatura organica, diserbo con mezzi meccanici, ecc.).\n"]
["SE AZIENDA CERTIFICATA PEFC VIENE RICONOSCIUTO 1 PUNTO \n(rif. PEFC ITA 1004-1:2015 Allegati 1 – 2- 3 Norme tecniche PEFC)\n"]
["1.7. Materiali di propagazione (sementi, portainnesti, ecc.) (punti 1)\nL’azienda applica criteri dimostrabili per la scelta dei materiali di propagazione e delle cultivar al fine di garantire:\n• la qualità dei materiali di propagazione (semi, portinnesti, varietà, ecc.);\n• la corretta scelta varietale (es. qualità nutrizionali, resistenza alle malattie, adattabilità a particolari condizioni ambientali, ecc.);\n• l'esecuzione di colture appropriate in relazione all'ambiente relativo;\n• utilizzo di sementi non ibride.\n"]
["SE AZIENDA CERTIFICATA PEFC VIENE RICONOSCIUTO 1 PUNTO \n(rif. PEFC ITA 1004-1:2015 Allegati 1 – 2- 3 Norme tecniche PEFC)\n"]
["1.8. Certificazioni (punti 1)\nL’azienda è certificata secondo lo Standard Global G.A.P. o equivalenti riconosciuti a livello internazionale o nazionale per le Buone Pratiche Agricole (es. QS, AMA, ecc.), oppure PEFC, da enti di parte terza accreditati."]
["SE AZIENDA CERTIFICATA PEFC VIENE RICONOSCIUTO 1 PUNTO \n(rif. PEFC ITA 1004-1:2015)\n"]
[]
["2. TUTELA DELLA FERTILITÀ DEI SUOLI",null,null,null,null,null,null,null,null,"(PUNTI 12)"]
["Per la ricostituzione della Biodiversità nel suolo l'azienda ha attuato:"]
["AZIONI",null,null,null,null,null,null,null,null,"PUNTI"]
["2.1. Gestione del suolo (punti 2)\nAumento di quantità e durata della copertura del suolo (e/o riduzione delle perdite):\n• Frutteti o altre colture poliennali – E’ applicata la copertura permanente/ temporanea con inerbimento (tra/nelle file) per migliorare le caratteristiche del suolo e favorire la formazione di humus stabile; in base alle disposizioni agronomiche, l’azienda deve dimostrare nei primi tre anni dall’impianto l’adozione di un piano aziendale per realizzare la copertura permanente del suolo)\n• Ortaggi - Sono praticate lavorazioni minime/nessuna lavorazione per limitare le alterazioni delle caratteristiche del suolo (compattazione, profondità dello strato superficiale, tessitura) e/o che regolano la pendenza e il drenaggio per ridurre la vulnerabilità all’erosione.\n"]
["SE AZIENDA CERTIFICATA PEFC VENGONO RICONOSCIUTI PUNTI 0.5\n(rif. PEFC ITA 1004-1:2015 Allegati 1 – 2- 3 Norme tecniche PEFC)\n"]
["2.2. Sovesci (punti 2)\nVengono seminate colture di copertura a scopo di sovescio nell’area certificata\n(punti in base alla % di superficie a sovescio sul 50% dell’area agricola utile certificata PEFC: < 10%=0, 10%-50% = 1, ≥ 50% = 2)\n"]
["2.3. Concimi organici - origine (punti 2)\nSono apportate ripetute e razionali applicazioni di (a e/o b):\na) ammendanti organici di maggiore qualità e migliore impatto sulla struttura del suolo (es. letame bovino maturo);\nb) altri ammendanti e/o concimi organici controllati e di origine sicura, inclusi sottoprodotti da riciclo (es. compost naturale maturo) ad esclusione di prodotti di origine da processi di concia e/o ammendanti da fanghi industriali.\n"]
["SE AZIENDA CERTIFICATA PEFC VENGONO RICONOSCIUTI PUNTI 1\n(rif. PEFC ITA 1004-1:2015 Allegati 1 – 2- 3 Norme tecniche PEFC)\n"]
["2.4. Concimi organici - utilizzo (max punti 2)\nGli apporti sono calcolati tramite Piano di Fertilizzazione aziendale, basato su analisi del suolo regolari e calcolo degli asporti.\nLa frequenza delle Analisi è: almeno ogni 3 anni (punti 1), ogni anno (punti 2)\n"]
["SE AZIENDA CERTIFICATA PEFC VENGONO RICONOSCIUTI PUNTI 1\n(rif. PEFC ITA 1004-1:2015 Allegati 1 – 2- 3 Norme tecniche PEFC)\n"]
["Nota: il Report di fertilizzazione del suolo è caricato sul Portale BF – (SI - NO)\nentro il secondo anno di certificazione il documento deve essere caricato\n"]
["2.5. Erosione del suolo (punti 2)\nRedazione del report del suolo annuale, composto da mappa dei suoli (profili dei suoli principali) dell’azienda e dei terreni circostanti e analisi e valutazione dei rischi di potenziali/attuali perdite di suolo (erosione e/o degrado) classificata nelle 3 seguenti categorie:\nA. livelli di base della struttura e della lavorazione del suolo ben mantenuti, o\nB. presenza di una non rilevante, ma evitabile, erosione del suolo, o\nC. perdita netta significativa di suolo dovuta ad acque superficiali/vento.\nNei casi B e C sono descritte le strategie preventive attuate, adeguate ai rischi emersi (es. copertura vegetale, strutture di drenaggio o regimazione delle acque meteoriche, frangivento, ecc.), per proteggere il suolo dall’erosione e minimizzare la perdita di sedimenti; la valutazione della loro efficacia è inclusa nella revisione annuale del Report.\n\n"]
["SE AZIENDA CERTIFICATA PEFC, beneficiaria di fondi comunitari e sottoposta ad obbligo di rispetto delle BCAA che impongono l’analisi del suolo prima dell’impianto della piantagione, VENGONO RICONOSCIUTI PUNTI 2\n(rif. PEFC ITA 1004-1:2015 Criteri e Indicatori)"]
["Nota: il Report del Suolo viene caricato sul Portale BF – (SI -NO)\nentro il secondo anno di certificazione il documento deve essere caricato\n"]
["2.6. Uso dei fertilizzanti (punti 1)\nSono adottate tecniche che consentono di minimizzare la quantità di fertilizzanti chimici e/o il loro impatto sulla qualità del terreno e/o le perdite per lisciviazione, quali almeno 3 tra queste:\n• dati da analisi fogliari e altre analisi specifiche (pH, micronutrienti, ecc.), \n• frazionamento in più applicazioni durante la stagione,\n• fertirrigazione e altri metodi innovativi di distribuzione in grado di ridurre la quantità di fertilizzanti, ma senza effetti negativi sulla fauna del suolo,\n• sistemi di calcolo/rilevamento dei fabbisogni nutrizionali delle piante, \n• pratiche per combattere la salinizzazione del suolo,\n• non usa fertilizzanti\n"]
["SE AZIENDA CERTIFICATA PEFC VENGONO RICONOSCIUTI PUNTI 1\n(rif. PEFC ITA 1004-1:2015 Allegati 1 – 2- 3 Norme tecniche PEFC)\n"]
["2.7. Lotta Biologica (punti 1)\nApplicazione di metodi biologici per prevenire/combattere avversità terricole (es. Nematodi): solarizzazione, rotazioni, sovesci rinettanti, organismi utili.\n"]
[]
["3. GESTIONE RAZIONALE DELLA RISORSA ACQUA",null,null,null,null,null,null,null,null," (PUNTI 10)"]
["Per migliorare la gestione delle risorse idriche allo scopo di risparmiarne l'uso ed evitarne l’inquinamento l'azienda ha adottato:"]
["AZIONI",null,null,null,null,null,null,null,null,"PUNTI"]
["3.1. Report di gestione dell’acqua (punti 2)\nRedazione del rapporto di gestione dell’acqua, con la descrizione di:\n• le risorse idriche (stato delle acque superficiali e di falda disponibili nell’area dell’azienda, a breve e a lungo termine)\n• le fonti di irrigazione,\n• i diritti legali di uso dell’acqua (autorizzazioni),\n• l'uso dell’acqua e sistemi di irrigazione per le attività agricole aziendali.\n"]
["SE AZIENDA CERTIFICATA PEFC VENGONO RICONOSCIUTI PUNTI 2\n(rif. PEFC ITA 1004-1:2015 Allegati 1 – 2- 3 Norme tecniche PEFC)\n"]
["Nota: il Report di Gestione dell’Acqua viene caricato sul Portale BF (SI - NO)\nentro il secondo anno di certificazione il documento deve essere caricato\n"]
["3.2. Piano di irrigazione (punti 1)\nL’azienda applica una strategia per massimizzare l’efficienza nei sistemi di irrigazione per usare le risorse idriche in un modo razionale, attraverso un piano di irrigazione basato sul bilancio idrico di ciascuna coltura in sintonia con le linee guida ufficiali nazionali, regionali, locali. Il piano considera le fasi fenologiche, le tipologie di suolo e le condizioni climatiche dell’ambiente di coltivazione, compatibilmente con le caratteristiche e forme di distribuzione del sistema di irrigazione collettiva del territorio, ed in particolare:\n• Richieste di acqua delle colture e stagione di crescita delle colture (in giorni),\n• Periodi, volumi di ciascuna irrigazione, consumo totale di acqua.\n"]
["SE AZIENDA CERTIFICATA PEFC, beneficiaria di fondi comunitari e sottoposta ad obbligo di rispetto delle BCAA che impongono la costituzione di un piano di irrigazione, VIENE RICONOSCIUTO 1 PUNTO\n(rif. PEFC ITA 1004-1:2015 Criteri e Indicatori)\n"]
["Nota: il Report di Gestione dell’Acqua viene caricato sul Portale BF (SI - NO)\nentro il secondo anno di certificazione il documento deve essere caricato\n"]
["3.3. Sistemi di irrigazione a risparmio idrico (max punti 3)\nL’azienda possiede sistemi di irrigazione che risparmiano acqua (es. micro-irrigazione, irrigazione a goccia, ecc.) se confrontati ad altri sistemi.\nTale sistema di irrigazione a basso volume è applicato:\n• su meno del 50% della superficie agricola utile certificata (punti 0)\n• su almeno il 50% della superficie agricola utile certificata (punti 1)\n• sul 100% della superficie agricola utile certificata, ma non nel resto della superficie aziendale non certificata (solo per le aziende con certificazione parziale); (punti 2)\n• in tutta la superficie agricola certificata dell’azienda (quando questa corrisponde alla SAU) (punti 3)\n\n"]
["3.4. Registro delle irrigazioni (punti 1)\nL’azienda, per ciascuna coltura, deve registrare nelle forme più adatte le date e i volumi di irrigazione. Nel caso di micro-irrigazione può essere indicato solo il volume totale e la frequenza dell’irrigazione. Per ogni evento di irrigazione, l’azienda rispetta il maggiore volume fornito in funzione del tipo di suolo, desunto dalle indicazioni della coltura delle linee guida per l’irrigazione della Produzione integrata o da norme regionali.\n"]
["SE AZIENDA CERTIFICATA PEFC, beneficiaria di fondi comunitari e sottoposta ad obbligo di rispetto delle BCAA che impongono la costituzione di un piano di irrigazione, VIENE RICONOSCIUTO 1 PUNTO\n(rif. PEFC ITA 1004-1:2015 Criteri e Indicatori)\n"]
["3.5. Strumenti di misura e Dati pluviometrici (punti 2)\nL'azienda adotta strumenti di rilevazione e registra i dati di umidità del terreno o della pianta (es. tensiometro, sensori fogliari, ecc.) e meteorologici (es. pluviometri, dati ufficiali di piovosità, ecc.) allo scopo di ottimizzare l'irrigazione. La registrazione dei dati deve essere dimostrabile (on line, su registro cartaceo o informatico, quaderno di campo, ecc.)\n"]
["3.6. Gestione degli scarichi (punti 1)\nL'azienda può dimostrare di gestire lo smaltimento dei reflui derivanti dall’attività aziendale in modo che essi non possano alterare i corpi idrici (es. evaporazione, fitodepurazione, ecc.).\n"]
["In alternativa alle azioni precedenti - punto 3.7 o 3.8:"]
["3.7. Opzione “Consumo Idrico Zero” (Punti 10)\nL'azienda ha adottato colture con varietà e cultivar con limitate esigenze idriche e adotta tecniche di coltivazione che non comportano l’utilizzo di alcun apporto idrico per l’irrigazione. Per dimostrare tale impegno l’azienda è tenuta al calcolo della Water Footprint e/o a fornire una dichiarazione esplicita con specifiche di attuazione del piano di non irrigazione (cultivar, tempi, lavorazioni agronomiche, rotazioni, ecc.).\n"]
["SE AZIENDA CERTIFICATA PEFC se durante la verifica in campo il pioppeto viene gestito in asciutto, ad eccezione di irrigazioni di soccorso entro il terzo anno VENGONO RICONOSCIUTI PUNTI 10\n(rif. PEFC ITA 1004-1:2015 Criteri e Indicatori)\n"]
["3.8. Water footprint (punti 10)\nCertificazione della Water Footprint aziendale (individualmente o tramite un Gruppo) in conformità alla norma ISO 14046.\n"]
[]
["4. TUTELA DI SIEPI, BOSCHI, PRATI, SPECIE NETTARIFERE E FORMAZIONI NATURALIFORMI",null,null,null,null,null,null,null,null,"(PUNTI 20)"]
["Al fine di sostenere gli habitat fondamentali per migliorare la popolazione di organismi utili l’azienda ha adottato:"]
["AZIONI",null,null,null,null,null,null,null,null,"PUNTI"]
["4.1. Aree di conservazione naturale: boschi, zone umide e aree naturaliformi (max punti 5)\nLe aree permanenti coperte da boschi e / o zone umide / ecosistemi ripari per sostenere le specie e gli habitat sono   creati,   mantenuti    e/o    aumentati,    nella    seguente    percentuale    sulla    SAU    dell’Azienda:  (i punti vengono assegnati solo se la copertura è di almeno 500 m2)\n> 8% (punti 5)\n>5% ≤ 8% (punti 4)\n>3% ≤ 5% (punti 3)\n> 2% ≤ 3% (punti 2)\n> 0.5% ≤ 2% (punti 1)\n"]
["SE AZIENDA CERTIFICATA PEFC VENGONO RICONOSCIUTI PUNTI 5 se il 10% della SAU è occupata da Piantagioni Policicliche Naturalistiche Permanenti (3P)\n(rif. PEFC ITA 1004-1:2015 Allegati 1 – 2- 3 Norme tecniche PEFC\n"]
["4.2. L'azienda possiede nei propri confini aziendali siepi per conservare la vita selvatica, favorire ambienti naturali preesistenti con essenze spontanee, anche piantumate ex novo (max punti 5)\nIn questo caso dovranno essere presenti prevalentemente alberi e arbusti autoctoni quali quelli inseriti da WBAP nell’Allegato 1; le specie da utilizzare potranno anche essere concordate e scelte dall’azienda insieme a WBAP a seguito di uno studio fitologico (censimento) delle specie presenti naturalmente nell’area.\nConsiderata la SAU dell'azienda agricola, la superficie delle siepi ne rappresenta la seguente percentuale:\n(punti vengono applicati solo se sono piantati almeno 100 m di siepe)\n> 4% (punti 5)\n> 3% ≤ 4% (punti 4)\n> 2% ≤ 3% (punti 3)\n> 1% ≤ 2% (punti 2)\n> 0.5% ≤ 1% (punti 1)\n"]
["SE AZIENDA CERTIFICATA PEFC VENGONO RICONOSCIUTI PUNTI 5 se il 10% della SAU è occupata da Piantagioni Policicliche Naturalistiche Permanenti (3P)\n(rif. PEFC ITA 1004-1:2015 Allegati 1 – 2- 3 Norme tecniche PEFC\n"]
["4.3. Nell’Azienda sono presenti terrazzamenti/muri a secco (max punti 3)\nLa superficie occupata, assegnando loro una profondità convenzionale media di 1,5 m, rispetto alla SAU dell'azienda:\n\n> 2% (punti 3) \n> 1% ≤ 1% (punti 2)\n> 0.5 ≤ 1% (punti 1)\n"]
["SE AZIENDA CERTIFICATA PEFC VENGONO RICONOSCIUTI PUNTI 3 se il 10% della SAU è occupata da Piantagioni Policicliche Naturalistiche Permanenti (3P)\n(rif. PEFC ITA 1004-1:2015 Allegati 1 – 2- 3 Norme tecniche PEFC\n"]
["4.4. Rifugi per pipistrelli (1 punto)\nL'azienda attua interventi per favorire la diffusione dei Chirotteri con una o più delle seguenti opzioni al fine di offrire aree di protezione e/o rifugio alle specie:\n• presenza di grandi alberi cavi da conservare;\n• posizionamento di nidi artificiali (almeno una bat-box ogni 2 ha di SAT, fino ad un massimo di 10 bat-box, in relazione al numero massimo di aree utili per il posizionamento);\n• rispetto per edifici rurali o rifugi naturali ospitanti colonie di pipistrelli.\n"]
["4.5. Nidi artificiali (1 punto)\nL'azienda ha collocato nidi artificiali per gli uccelli (almeno un nido ogni ha di SAU fino ad un massimo di 20 nidi o comunque in relazione alle densità di popolazione ed alle esigenze specie specifiche, in base a dati oggettivi derivanti da studi ornitologici sull’area) in prossimità di boschi, siepi o altre aree rifugio. Se l’azienda partecipa attivamente a progetti specifici di salvaguardia di rapaci diurni e/o notturni o di insettivori e/o passeriformi, anche attraverso programmi di conservazione genetica o offrendo aree di nidificazione e protezione speciale, si attribuisce il punteggio a prescindere dal numero di nidi artificiali collocati.\n"]
["4.6. Habitat/rifugi artificiali (1 punto)\nL'azienda favorisce o crea habitat/rifugi naturali e/o artificiali per insetti impollinatori/ausiliari nemici naturali di parassiti di colture.\n"]
["4.7. Api mellifere (1 punto)\nL'azienda gestisce direttamente o ospita in modo continuativo arnie di api mellifere, al fine di promuovere l'impollinazione naturale nei terreni coltivati e non\n"]
["4.8 Impollinatori selvatici (punti 1)\nL'azienda supporta l'attività degli insetti impollinatori attraverso la diffusione di piante nettarifere che conservano quelle esistenti. Nell’azienda sono presenti piante nettarifere in grado di favorire l'azione dei pronubi quando nelle aree a bosco e siepe sono presenti almeno 10 delle specie nettarifere elencate nell'Allegato 3.\n"]
["4.9. Volontariato (punti 1)\nL'azienda partecipa a programmi di conservazione destinati alla biodiversità, alla protezione degli ecosistemi o di bacini idrografici, a sostenere specie e habitat.\n"]
["4.10. Prati polifiti (punti 3)\nIl coltivatore coltiva prati polifiti che lasciano non lavorato il terreno per più di un anno (anche residui di colture precedenti, policolture perenni, bande inerbite all'interno/ai bordi dell'azienda, o altre pratiche efficaci) su una superficie equivalente alle seguenti percentuali sulla SAU aziendale (minimo 1.000 m2):\n> 3% (punti 3)\n> 1% ≤ 3% (punti 2)\n> 0,5% ≤ 1% (punti 1)\nSE AZIENDA CERTIFICATA PEFC VENGONO RICONOSCIUTI PUNTI a fronte di un inerbimento permanente pluriennale polifita (minimo 5 anni), considerando la % di copertura erbacea polifita sul 50% della superficie agricola utile certificata PEFC, secondo lo schema seguente (minimo 500 m2):\n\n> 20% (punti 3)\n> 10% ≤ 20% (punti 2)\n> 5% ≤ 10% (punti 1)\n"]
[]
["5. TUTELA DELLA BIODIVERSITÀ AGRARIA E STRUTTURALE",null,null,null,null,null,null,null,null,"(PUNTI 13)"]
["Per favorire la Biodiversità dell’Agroecosistema l'azienda ha adottato:"]
["AZIONI",null,null,null,null,null,null,null,null,"PUNTI"]
["5.1. Antiche varietà, cultivar o razze animali (punti 2)\nPresenza nell'azienda agricola di varietà vegetali e/o razze animali, espressione della tipicità storica, socio- economica e culturale del territorio.\nL'attuazione della biodiversità da cultivar/specie o razze autoctone è misurata in superficie aziendale e/o dal numero di capi. L'impegno dell'azienda nella conservazione della biodiversità è riconosciuto se la superficie agricola coltivata con antiche varietà vegetali è superiore al 2% della SAU e/o in caso di animali, le razze antiche dell’azienda sono >3% del numero totale dei capi.\n"]
["5.2. Uso diversificato del suolo (punti 2)\nL'azienda applica appropriate rotazioni delle colture secondo norme nazionali o regionali di riferimento, comprese quelle dei disciplinari di produzione per i prodotti a marchio, purché tali disciplinari non vadano in netta contrapposizione con le norme nazionali o regionali (es. per la Produzione Integrata). Se l’azienda ha una superficie superiore a 3 ha deve avere non più del 80% della superficie coperta dalle due colture da reddito principali.\n"]
["SE AZIENDA CERTIFICATA GFS (per l’intera sau) SI RITIENE TALE PUNTO 5.2 NON APPLICABILE "]
["5.3. Diversità delle colture (punti 1)\nL’azienda promuove la diversità delle colture attraverso vari metodi, tra i quali l'autoproduzione di materiale di propagazione (sementi o talee autoprodotte)\n\n"]
["SE AZIENDA CERTIFICATA GFS (per l’intera sau) SI RITIENE TALE PUNTO 5.3 NON APPLICABILE \n"]
["5.4. Necromasse di legno (punti 1)\nPer favorire la fauna saproxilica l'azienda rilascia nelle aree a bosco e /o a siepe dell'azienda necromassse legnose nella misura di almeno 1 m3 per ettaro e/o 10 m3 per centro aziendale o sub-area produttiva omogenea.\n"]
["SE AZIENDA CERTIFICATA GFS (per l’intera sau) SI RITIENE TALE PUNTO 5.4 NON APPLICABILE "]
["5.5. Partecipazione a programmi sperimentali per la conservazione genetica (punti 1)\nL’azienda partecipa a progetti di ricerca per la conservazione dei patrimoni genetici locali e a prove sperimentali per l’utilizzo di tecniche colturali atte a preservare la diversità genetica in agricoltura in collaborazione con Enti di ricerca riconosciuti.\n"]
["5.6. Piano per la Biodiversità (punti 3)\nL’azienda applica una strategia per implementare la diversità biologica attraverso un piano per la biodiversità basato sull’analisi degli elementi presenti in azienda e nel circondario che favoriscono la biodiversità e fissa degli obiettivi triennali di miglioramento per ridurre/minimizzare gli effetti negativi sulla biodiversità e ripercuotere i suoi effetti sugli habitat e sulla fauna circostanti.\n\nLa relazione aziendale contiene:\n• un inventario di base e la descrizione qualitativa dei tipi di habitat e delle specie associate di fauna selvatica osservate all'interno dei confini aziendali;\n• aree designate di elevato valore ecologico presenti all’interno o ai bordi delle superfici aziendali;\n• ogni specie rara o minacciata che possa essere favorita all'interno dell'azienda mediante modifiche dell'assetto aziendale;\n• opportunità economico-ambientali e risorse/competenze disponibili;\n• opportuni indicatori multipli da monitorare per documentare i progressi delle strategie attuate dall’azienda verso gli obiettivi di protezione e aumento della diversità dell’agro-ecosistema.\n"]
["Note: il Piano per la Biodiversità viene caricato sul Portale BF – (SI - NO)\nentro il secondo anno di certificazione il documento deve essere caricato\n"]
["5.7. Specie invasive (punti 1)\nL’azienda adotta misure appropriate e improntate alla sostenibilità per ripristinare condizioni idonee al mantenimento dell'equilibrio ecologico in caso di pullulazioni di specie invasive.\n"]
["SE AZIENDA CERTIFICATA PEFC VENGONO RICONOSCIUTI PUNTI 1\n(rif. PEFC ITA 1004-1:2015 Allegati 1 – 2- 3 Norme tecniche PEFC)\n"]
["5.8. Inquinamento luminoso (punti 1)\nL’azienda è impegnata nell’adozione di misure atte a ridurre l'inquinamento luminoso, in conformità agli standard /norme applicabili a livello comunitario, nazionale e/o regionale\n"]
["5.9. Attività agricole attente all'equilibrio dell'agrosistema (punti 1)\nL’azienda effettua lavorazioni meccaniche nel rispetto della fauna selvatica e degli habitat circostanti, al fine di ridurre al minimo gli impatti, in particolare durante la stagione riproduttiva e/o i periodi migratori.\n"]
["SE AZIENDA CERTIFICATA PEFC VENGONO RICONOSCIUTI PUNTI 1\n(rif. PEFC ITA 1004-1:2015 Allegati 1 – 2- 3 Norme tecniche PEFC)\n"]
[]
["6. RIDUZIONE DEI CONSUMI ENERGETICI E USO DI ENERGIE RINNOVABILI",null,null,null,null,null,null,null,null," (PUNTI 9)"]
["Per raggiungere questi risultati ed indicare criteri ambientali coerenti per i quali il miglioramento è desiderato\nl’azienda ha adottato:\n"]
["AZIONI",null,null,null,null,null,null,null,null,"PUNTI"]
["6.1. Fonti rinnovabili (punti 1)\nComplessivamente almeno il 51% dell’energia elettrica e/o dell’energia necessaria per lo svolgimento delle attività agricole, utilizzata dall’azienda, proviene da fonti rinnovabili on-Farm / off-Farm (si caricano nel portale evidenze documentali, es. attestazioni che la compagnia elettrica garantisce la fornitura di energia da fonti rinnovabili, certificati di impianti fotovoltaici o di biomasse, ecc).\n"]
["6.2. Autoproduzione (max punti 2)\nAlmeno una parte dell’energia elettrica e/o dell’energia termica necessaria è autoprodotta dall’azienda\n(es. tramite risorsa energetica derivante da biomasse, acqua, sole o vento):\n≥ 30% punti 2\n< 30% punti 1\n"]
["6.3. Tecniche di protezione della qualità dell'aria (punti 1)\nSono attuate tecniche di protezione della qualità dell'aria relative a inquinanti atmosferici pericolosi generati nell'ambito delle attività agricole (indicare almeno 2 opzioni tra le seguenti):\n• manutenzione annual delle caldaie a gas con controllo delle emissioni di particolato e dei precursori di O3 (NOx e VOC, ovvero Volatile Organic Carbons);\n• monitoraggio delle emissioni sui veicoli;\n• manutenzione di attrezzature, veicoli e impianti agricoli per ottimizzare l'efficienza dei carburanti; utilizzo di pratiche di no-tillage o minimum-tillage in quelle colture adatte a questi metodi di conservazione\n• mantenere o terreni non coltivati/in set-aside;\n• adottare strategie che favoriscono la fissazione dell’azoto;\n• pianificare l’uso dei mezzi per minimizzare il numero dei trasporti extra-aziendali.\n"]
["6.4. Progetti di monitoraggio dell'inquinamento atmosferico (punti 1)\nPartecipazione ad un progetto di monitoraggio dell'inquinamento atmosferico.\n"]
["6.5. Compensazioni di carbonio – Energy Saving (punti 1)\nAcquisto di compensazioni di carbonio per ridurre l'impronta globale di carbonio delle attività aziendali\n"]
["SE AZIENDA CERTIFICATA GFS (per l’intera sau) SI RITIENE TALE PUNTO 6.5 NON APPLICABILE \nGFS è sottoposta a verifica Biodiversity Friend®\n"]
["6.6. Report Energetico (punti 1)\nRedazione di un Report Energetico, che descrive i rischi per la risorsa e altre implicazioni (Valutazione dei rischi):\n• produzione e uso di energia per le attività aziendali, energia da fonti rinnovabili e non rinnovabili prodotta/acquisita in Azienda. In caso di energia rinnovabile prodotta in sito (es. fotovoltaico, biogas, ecc.), indicare se l’energia rinnovabile è utilizzata in Azienda e se gli eccessi sono venduti all’esterno;\n• obiettivi/strategie per l’efficienza energetica e la riduzione dell’uso di risorse energetiche non rinnovabili e metodi di valutazione dei progressi verso questi obiettivi adottando misure per ridurre i rischi per la qualità dell’aria da GHGs e altri fattori di stress climatico (l’azienda valuta risultati relativi agli obiettivi e adotta strategie conformi).\n"]
["Nota: (il Report Energetico viene caricato sul Portale BF) – (SI - NO)\nentro il secondo anno di certificazione il documento deve essere caricato\n"]
["6.7. Acquisto di foresta pluviale (punti 1)\nL’azienda acquista quote di foresta pluviale (almeno 100 m2 per ogni ettaro di SAU dell’azienda) tramite ONG o organizzazioni no profit riconosciute che operano a livello nazionale ed internazionale per la conservazione delle foreste e della biodiversità.\n"]
["In alternativa alle azioni precedenti"]
["6.8. Carbon footprint (punti 9)\nCertificazione della Carbon Footprint aziendale (individualmente o tramite un Gruppo) in conformità alla norma UNI EN ISO 14064 -1:2012.\n"]
[]
["7. TUTELA DEL TERRITORIO E DEL PAESAGGIO RURALE",null,null,null,null,null,null,null,null,"(PUNTI 10)"]
["Per raggiungere questi risultati e certificare il proprio impegno nella responsabilità ambientale l’azienda ha adottato:"]
["AZIONI",null,null,null,null,null,null,null,null,"PUNTI"]
["7.1. Materiali biodegradabili (punti 1)\nL’azienda utilizza nei processi produttivi, ove possibile, materiali biodegradabili\n"]
["SE AZIENDA CERTIFICATA PEFC VENGONO RICONOSCIUTI PUNTI 1\n(rif. PEFC ITA 1004-1:2015 Criteri e Indicatori (punto 11) - Allegati 1 – 2- 3 Norme tecniche PEFC)\n"]
["7.2. Arboricoltura da legno (punti 1)\nL’azienda destina una parte (almeno il 3% della SAU) dell’azienda a piantagioni di arboricoltura da legno, per aumentare lo stoccaggio di CO2.\n"]
["SE AZIENDA CERTIFICATA PEFC VENGONO RICONOSCIUTI PUNTI 1\n(rif. PEFC ITA 1004-1:2015 Allegati 1 – 2- 3 Norme tecniche PEFC)\n"]
["7.3. Ricostruzioni o ristrutturazioni (punti 1)\nL’azienda, contro il consumo di suolo, costruisce o ha costruito (compresi i precedenti 3 anni prima della certificazione) strutture aziendali senza occupazione di terreno agricolo, preferendo aree con coperture del suolo artificiali, edifici preesistenti, demolizioni e ricostruzioni o ristrutturazioni di edifici esistenti.\n"]
["7.4. Riciclo dei rifiuti (punti 1)\nL’azienda smaltisce i rifiuti agricoli (esclusi i residui delle colture) tramite aziende autorizzate che effettuano la differenziazione e il riciclo.\n"]
["7.5. Raccolta differenziata dei rifiuti (punti 1)\nL’azienda effettua la raccolta differenziata, collocando in diversi ambiti aziendali contenitori per i rifiuti adeguati e separati, collocati in siti idonei, distanti da case e altre aree di attività umana, canali/fonti d'acqua e aree di conservazione e gestiti per ridurre i rischi di danni alla salute umana e di contaminazione ambientale.\n"]
["7.6. Riuso dei sottoprodotti (punti 1)\nL’azienda riutilizza, ricicla, ripristina, o recupera altrimenti i sottoprodotti organici/inorganici generati dall'attività aziendale (il riuso non include alcun tipo di materiale o sostanza pericolosa).\n"]
["7.7. Reflui agricoli (punti 1)\nL’azienda adotta soluzioni a ridotto impatto ambientale per lo smaltimento dei reflui agricoli, adottando almeno una delle seguenti azioni:\n• stoccaggio in contenitori dedicati per lo smaltimento;\n• sistemi di evaporazione/depurazione per smaltire eccedenze dei trattamenti;\n• sistemi biologici di depurazione dei reflui zootecnici (es. con ozono, filtri a membrane, ecc).\n"]
["7.8. Gestione agrofarmaci (punti 1)\nIn azienda i depositi per l'immagazzinaggio degli agrofarmaci sono protetti e contengono quanto segue: contenitori vuoti e sacchetti per riattivare contenitori danneggiati o perdenti, estintore, dispositivi di protezione, presa d'acqua, kit lavaocchi, kit per le dispersioni (segatura, sabbia o altro materiale idoneo per assorbire le fuoriuscite) segnaletica di segnalazione visibile secondo le norme o le linee guida nazionali e procedure di emergenza.\nI depositi sono:\na) non collocati in aree soggette ad inondazioni\nb) facilmente accessibile dai veicoli di consegna\nc) ben ventilati (attivamente o passivamente)\n"]
["SE AZIENDA CERTIFICATA PEFC VENGONO RICONOSCIUTI PUNTI 1\n(rif. PEFC ITA 1004-1:2015 Allegati 1 – 2- 3 Norme tecniche PEFC)\n"]
["7.9. Stoccaggio sicuro dei fertilizzanti (punti 1)\nI fertilizzanti sono immagazzinati in aree/locali coperti e comunque al riparo da pioggia ed altri eventi che possono provocare la dispersione di sostanze chimiche sul suolo o nelle acque.\n"]
["SE AZIENDA CERTIFICATA PEFC VENGONO RICONOSCIUTI PUNTI 1\n(rif. PEFC ITA 1004-1:2015 Allegati 1 – 2- 3 Norme tecniche PEFC)\n"]
["7.10. Stoccaggio dei rifiuti (punti 1)\nLavoratori e residenti in azienda collaborano per mantenere l'azienda e i luoghi di lavoro puliti, liberi da rifiuti e ordinati. Tutti i siti di stoccaggio per rifiuti non influenzano negativamente la struttura o l'ambiente circostante (es. per lisciviazione, scorrimento) e sono segregati per facilitare la corretta conservazione, manipolazione e smaltimento\n"]
[]
["8. SOSTENIBILITÀ SOCIALE",null,null,null,null,null,null,null,null,"(PUNTI 5)"]
["Per raggiungere questi risultati in un contesto di buone pratiche agricole coerenti l'azienda ha adottato:"]
["AZIONI",null,null,null,null,null,null,null,null,"PUNTI"]
["8.1. Sostenibilità Sociale (punti 1)\nL'azienda sviluppa, mantiene e applica procedure per gestire gli aspetti di Responsabilità Sociale che può controllare o influenzare, in modo da consentirle di dimostrare credibilmente alle parti interessate che le procedure e le pratiche aziendali sono rispettose dei diritti dei lavoratori.\n"]
["SE AZIENDA CERTIFICATA PEFC VENGONO RICONOSCIUTI PUNTI 1\n(rif. PEFC ITA 1004-1:2015 Criteri e Indicatori - Allegati 1 – 2- 3 Norme tecniche PEFC)\n"]
["8.2. Attività sociali (punti 1)\n• L’azienda promuove almeno una delle seguenti azioni che hanno ripercussioni di carattere sociale incentiva il lavoro giovanile (utilizzo di giovani in agricoltura);\n• organizza e coordina attività educative (asili nido/scuole d’infanzia);\n• offre lavoro e attività di collaborazione a persone con disabilità o enti sociali;\n• condivide l'ambiente agricolo, rendendolo aperto alle persone che ne vogliono fruire liberamente e gratuitamente, nel rispetto di orari e tempistiche, anche attraverso la realizzazione di percorsi dedicati (es. percorso salute o percorso ambiente).\n"]
["8.3. Gestione degli incidenti (punti 1)\nSono stabilite procedure di segnalazione di incidenti per l'esposizione ambientale e umana a sostanze pericolose (es. fuoriuscite di agrofarmaci), inclusa l'analisi delle cause e adeguate azioni correttive.\n"]
["SE AZIENDA CERTIFICATA PEFC VENGONO RICONOSCIUTI PUNTI 1\n(rif. PEFC ITA 1004-1:2015 Criteri e Indicatori\n"]
["Nota: (la Procedura di gestione degli Incidenti viene caricato sul Portale BF) – (SI - NO)\nentro il secondo anno di certificazione il documento deve essere caricato\n"]
["8.4. Monitoraggio dei residui in base ad una valutazione del rischio (punti 1)\nE’ in atto un Piano aziendale annuale di monitoraggio dei residui, stabilito tramite valutazione del rischio per i consumatori, per rilevare MRL (livello massimo di residui), ARfD (dose acuta di riferimento) e contaminanti.\n"]
["Nota: (il Piano di monitoraggio residui viene caricato sul Portale BF) – (SI - NO)\nentro il secondo anno di certificazione il documento deve essere caricato\n"]
["8.5. Procedure sicure per la manipolazione delle sostanze chimiche pericolose (punti 1)\n\n• L'Azienda ha definito procedure di manipolazione degli agrofarmaci, tra cui: agrofarmaci conservati nelle confezioni originali del produttore; sistemazione che assicuri l'arieggiamento;\n• mantenimento di un registro per gli agrofarmaci e inventari di 12 mesi; adempiere alle procedure di acquisto;\n• formazione dei dipendenti sulla corretta gestione degli agrofarmaci e di altri materiali pericolosi;\n• requisiti della zona di miscelazione (tavole pulite o prive di polveri o serbatoi portatili, istruzioni di emergenza specifiche del sito);\n• procedure per il trasporto sicuro;\n• disponibilità di kit di sicurezza in caso di dispersione;\n• procedure di rottura, incluse la documentazione di smontaggio e pulizia; controllo dell'inventario;\n• stoccaggio di fertilizzanti ossidanti e infiammabili bloccati; segregazione dei depositi per l’immagazzinamento degli agrofarmaci;\n• rimozione di materiali di imballaggio danneggiati da agenti di varia natura che possono causare perdite di materiali pericolosi.\n\n"]
["SE AZIENDA CERTIFICATA PEFC VENGONO RICONOSCIUTI PUNTI 1\n(rif. PEFC ITA 1004-1:2015 Criteri e Indicatori)\n"]
[]
["9. SOSTENIBILITÀ ECONOMICA",null,null,null,null,null,null,null,null,"(PUNTI 8)"]
["Per raggiungere questi risultati in un contesto di buone pratiche agricole coerenti l’azienda ha adottato:"]
["AZIONI",null,null,null,null,null,null,null,null,"PUNTI"]
["9.1. Agricoltura di lungo termine - Gestione della terra a lungo termine (max punti 2)\nInveste in pratiche che forniscono benefici di sostenibilità a lungo termine, valutando questo aspetto sulla base dei seguenti indici (indicare solo una scelta tra proprietario o affittuario in base all’indicatore maggiore in superficie):\n\nOperatore proprietario - viene considerata la percentuale di superficie di terreni di proprietà rispetto alla superficie totale dei terreni condotti\n• > 90% (punti 2)\n• ≥ 50% ≤ 90% (punti 1)\n\nOperatore affittuario - viene calcolato sulla base durata del contratto di affitto*\n• > 5 anni (punti 2)\n• ≥ 3 ≤ 5 anni (punti 1)\n"]
["SE AZIENDA CERTIFICATA PEFC VENGONO RICONOSCIUTI PUNTI 2\n(rif. PEFC ITA 1004-1:2015 Criteri e Indicatori - Allegati 1 – 2- 3 Norme tecniche PEFC)\n"]
["9.2. Piano per la Sostenibilità - Criteri di pianificazione e gestione (punti 3)\nL'azienda ha predisposto una autovalutazione con un approccio a tre dimensioni, l’agricoltore identifica gli obiettivi ambientali, sociali ed economici delle proprie operazioni che saranno perseguiti per aumentare il reddito aziendale, salvaguardando la diversità dell’agrosistema, descrivendo gli indicatori applicabili che saranno valutati per ciascun obiettivo e stabilendo un Piano per la Sostenibilità della durata di almeno 3 anni. Dopo l’identificazione degli obiettivi e degli indicatori, l’Azienda stabilisce quali azioni, pratiche, strategie e ogni altra iniziativa che sarà utilizzata per raggiungere questi risultati per ciascun indicatore nell’anno corrente, rispetto all'anno precedente e negli anni seguenti del Piano per la Sostenibilità, in una logica di miglioramento continuo\n"]
["Nota: (il Piano per la Sostenibilità viene caricato sul Portale BF) – (SI - NO)\nentro il secondo anno di certificazione il documento deve essere caricato\n"]
["9.3. Formazione (punti 1)\nIl titolare o gli operatori possiedono un certificato di partecipazione ad una attività formativa di almeno 4 ore sui temi della conservazione della biodiversità o su tecniche alternative ai metodi tradizionali di difesa fitosanitaria, cui ha partecipato nei tre anni precedenti la verifica.\n"]
["9.4. Educazione ambientale e alimentare (punti 1)\nL’Azienda promuove attività di educazione ambientale e alimentare.\n"]
["9.5. Agricoltura partecipata (punti 1)\nL’azienda partecipa a iniziative che promuovono sinergie per l’utilizzo di risorse (terra, mangimi, fertilizzanti, ecc.) condivise tra aziende agricole a livello locale/regionale, o programmi di vendita collettiva (es. GAS), o altre iniziative che hanno l’obiettivo di condividere risultati positivi con altre Aziende o con i consumatori\n"]
["SE AZIENDA CERTIFICATA PEFC VENGONO RICONOSCIUTI PUNTI 1 se ospita in misura continuativa nel tempo delle attività di apicoltura (apiari stanziali o semi-stanziali), attività didattiche e/o dimostrative"]
["9.6. Integrazione delle produzioni vegetali e animali (punti 1)\nIntegrazione di colture vegetali e animali, in azienda o in collaborazione con aziende agricole vicine, includendo produzione in azienda di foraggi e/o mangimi per gli animali da allevamento, produzione di ammendanti e concimi organici, piani di utilizzo del suolo, pascolo, ecc.\n"]
["SE AZIENDA CERTIFICATA GFS (per l’intera sau) SI RITIENE TALE PUNTO 9.6 NON APPLICABILE \nè sottoposta a verifica Biodiversity Friend®\n"]
["9.7. Vendita diretta (punti 1)\nL’azienda promuove la vendita diretta dei prodotti aziendali/locali (almeno il 51% della produzione totale), con una riduzione dei costi di distribuzione.\n"]
["SE AZIENDA CERTIFICATA GFS (per l’intera sau) SI RITIENE TALE PUNTO 9.7 NON APPLICABILE \nè sottoposta a verifica Biodiversity Friend®\n"]
[]
["10. TUTELA DEL SUOLO, DELL’ACQUA E DELL’ARIA\n(verificata in campo in fase di audit da parte di ente terzo Odc o di WBAP)\n"]
["Il valore finale aziendale di IBS-bf dovrà sempre essere mediamente maggiore di 100."]
["IBS-bf"]
["IBA-bf"]
["IBL-bf"]
[]
["Punteggio totale proprietà",null,null,null,null,null,{"$f":"SUM(J74,J76,J78,J80,J81,J83,J85,J87,J93,J95,J96,J98,J101,J104,J106,J111,J114,J117,J118,J120,J121,J123,J125,J130,J132,J134,J136,J137,J138,J139,J140,J141,J142,J147,J148,J150,J152,J154,J155,J157,J159,J160,J166,J167,J168,J169,J170,J172,J174,J176,J181,J183,J185,J186,J187,J188,J189,J190,J192,J194,J199,J201,J202,J205,J207,J213,J215,J217,J218,J219,J221,J223)","v":0}]
[]
[]
[]
[]
[]
[]
[]
[null,null,null,null,null,null,null,null,null,"Clicca \"PROCEDI\" per andare al Servizio Ecosistemico SE3"]

{"sheet":"SE3","index":4,"n_rows":210,"n_cols":8,"rows_kept":210,"cut":false,"hidden":false,"merged":[[175,0,175,10],[176,0,176,10],[177,0,177,10],[182,0,182,10],[183,0,183,10],[184,0,184,10],[185,0,185,10],[186,0,186,10],[190,0,190,10],[119,0,119,10],[120,0,120,10],[121,0,121,10],[122,0,122,10],[123,0,123,10],[128,0,128,10],[129,0,129,10],[130,0,130,10],[131,0,131,10],[61,0,61,3],[61,4,63,13],[62,0,63,3],[65,0,65,13],[93,0,93,10],[94,0,94,10],[95,0,95,10],[99,0,99,10],[100,0,100,10],[66,0,66,12],[90,0,90,12],[203,0,203,12],[119,11,119,12],[120,11,120,12],[121,11,121,12],[122,11,122,12],[123,11,123,12],[196,0,196,12],[197,0,197,12],[198,11,198,12],[49,0,49,3],[49,4,51,13],[50,0,51,3],[53,0,53,3],[53,4,55,13],[54,0,54,3],[55,0,55,3],[57,0,57,3],[57,4,59,13],[58,0,59,3],[36,0,36,3],[36,4,37,13],[37,0,37,3],[39,0,41,3],[39,4,43,13],[42,0,43,3],[45,0,45,3],[45,4,47,13],[46,0,47,3],[23,0,23,3],[23,4,25,13],[24,0,24,3],[25,0,25,3],[27,4,30,13],[32,0,32,3],[32,4,34,13],[33,0,33,3],[34,0,34,3],[27,0,30,3],[5,1,5,3],[5,4,5,13],[7,0,7,13],[9,0,10,3],[9,4,10,13],[13,0,13,3],[13,4,17,13],[14,0,14,3],[19,0,19,3],[19,4,21,13],[20,0,21,3],[199,11,199,12],[200,11,200,12],[201,11,201,12],[189,0,189,12],[190,11,190,12],[191,11,191,12],[192,11,192,12],[193,11,193,12],[194,0,194,3],[191,0,191,10],[192,0,192,10],[193,0,193,10],[198,0,198,10],[199,0,199,10],[200,0,200,10],[201,0,201,10],[182,11,182,12],[183,11,183,12],[184,11,184,12],[186,11,186,12],[185,11,185,12],[141,0,141,12],[142,0,142,12],[143,0,143,3],[144,0,144,3],[145,0,145,3],[143,4,143,12],[144,4,144,12],[145,4,145,12],[149,0,149,12],[146,0,146,3],[134,0,134,12],[135,0,135,12],[136,11,136,12],[137,11,137,12],[138,11,138,12],[136,0,136,10],[137,0,137,10],[138,0,138,10],[126,0,126,12],[127,0,127,12],[128,11,128,12],[129,11,129,12],[130,11,130,12],[131,11,131,12],[124,0,124,3],[124,4,124,12],[111,0,111,12],[112,0,112,12],[113,11,113,12],[114,11,114,12],[115,11,115,12],[113,0,113,10],[114,0,114,10],[115,0,115,10],[105,11,105,12],[106,11,106,12],[107,11,107,12],[108,11,108,12],[105,0,105,10],[106,0,106,10],[107,0,107,10],[108,0,108,10],[100,11,100,12],[101,11,101,12],[104,0,104,12],[101,0,101,10],[152,0,152,3],[150,0,150,3],[158,0,158,3],[160,0,160,3],[67,0,67,12],[69,0,69,3],[70,0,70,3],[68,0,68,12],[75,0,75,3],[81,0,81,3],[82,0,82,3],[78,0,78,12],[73,0,73,12],[74,4,74,12],[75,4,75,12],[79,4,79,12],[80,4,80,12],[81,4,81,12],[82,4,82,12],[93,11,93,12],[94,11,94,12],[202,0,202,3],[155,4,155,12],[159,0,159,3],[159,4,159,12],[161,0,161,3],[161,4,161,12],[163,0,163,3],[163,4,163,12],[171,0,171,3],[178,0,178,3],[178,4,178,12],[175,11,175,12],[176,11,176,12],[177,11,177,12],[180,0,180,12],[181,0,181,12],[86,0,86,3],[79,0,79,3],[96,0,96,3],[102,0,102,3],[71,0,71,3],[71,4,71,12],[76,0,76,3],[69,4,69,12],[70,4,70,12],[86,4,86,12],[87,4,87,12],[88,4,88,12],[91,0,91,12],[92,0,92,12],[95,11,95,12],[98,0,98,12],[99,11,99,12],[3,0,3,12],[173,0,173,12],[174,0,174,12],[116,0,116,3],[74,0,74,3],[80,0,80,3],[96,4,96,12],[76,4,76,12],[83,0,83,3],[83,4,83,12],[89,0,89,3],[89,4,89,12],[109,0,109,3],[109,4,109,12],[102,4,102,12],[85,0,85,12],[87,0,87,3],[88,0,88,3],[132,0,132,3],[132,4,132,12],[118,0,118,12],[165,0,165,12],[166,0,166,12],[158,4,158,12],[160,4,160,12],[167,11,167,12],[168,11,168,12],[169,11,169,12],[170,11,170,12],[167,0,167,10],[168,0,168,10],[169,0,169,10],[170,0,170,10],[116,4,116,12],[171,4,171,12],[187,4,187,12],[194,4,194,12],[202,4,202,12],[162,4,162,12],[139,0,139,3],[139,4,139,12],[146,4,146,12],[151,0,151,3],[151,4,151,12],[153,0,153,3],[153,4,153,12],[155,0,155,3],[148,0,148,12],[154,0,154,3],[152,4,152,12],[154,4,154,12],[150,4,150,12],[162,0,162,3],[187,0,187,3],[157,0,157,12]]}
[]
[]
[]
["SE3 - FUNZIONI TURISTICO RICREATIVE "]
[]
[null,"Attività del Progetto:"]
[]
["ATTIVITA' ADDIZIONALE "]
[]
["a) Finalità generali del servizio e obiettivi specifici di eventuali interventi finalizzati al raggiungimento dell’obiettivo e del suo mantenimento (punto a del DDP)"]
[]
[]
[]
["b) Risultati migliorativi misurabili da ottenere(punto b del DDP)"]
[]
[]
[]
[]
[]
["c) Risultati già ottenuti a seguito di precedenti attività svolte  (punto c del DDP)"]
[]
[]
[]
["d) Tempistiche necessarie per l’implementazione  (punto d del DDP)"]
["se applicabile"]
[]
[]
["e) Scenario di riferimento o gestione ordinaria (definita anche Business as usual - BAU), nell’area oggetto del SE e per confronto con aree assimilabili (indicare eventuali ricerche bibliografiche effettuate per definire questo valore) (punto e del DDP)"]
[]
[]
[]
[]
["f) Responsabilità, per attuazione e monitoraggio successivo del progetto  (punto f del DDP)"]
[]
[]
[]
["g) Definizione delle competenze necessarie e loro evidenze di mantenimento (punto g del DDP)"]
[]
[]
[" h) Risorse (umane e materiali) da mettere in campo (punto h del DDP)"]
[]
[]
[]
[]
[]
["i) Data della prima misurazione dalla quale dovrebbero essere visibili i benefici ottenuti,  (punto j del DDP)"]
[]
[]
[]
[" j) Risorse (umane e materiali) da mettere in campo (punto j del DDP)"]
[]
[]
[]
["k) Data della prima misurazione dalla quale dovrebbero essere visibili i benefici ottenuti,  (punto k del DDP)"]
["se applicabile"]
[]
[]
["l) Informazioni necessarie all’organismo di certificazione per la verifica del SE, come riportato dagli Allegati di questo standard  (punto l del DDP)"]
[]
[]
[]
["m) Indicare il numero e riferimenti geografici delle Unità forestali omogenee (per cert di grupppo per portatori di innovazione)"]
[]
[]
[]
["Per gli indicatori semi-quantitiativi indicare con una crrocetta la situazione che si ritrova nell' area valuatata o nell'unità forestale omogena considerata"]
["Principio Base: pianificazione delle strategia"]
["INDICATORE 0.1: Esiste e viene implementata una strategia ricreativa per l'area forestale / l'impresa."]
["0.1.1 - Definizione dei target e dell’ambito di fruizione (specifica a carattere prescrittivo)"]
["a) Si richiede l’individuazione dei possibili fruitori dell’area, come ad esempio gruppi di fruitori/attività/destinazione d’uso."]
["b) Si richiede che l’ambito (o gli ambiti) di fruizione sia precisamente identificato su mappa, indicando confini individuabili anche in loco, come elementi morfologici (strade, impluvi, corsi d’acqua, rilievi, crinali, ecc.), limiti particellari (anche del piano di gestione), limiti di proprietà o catastali, recinzioni, discontinuità dei soprassuoli, ecc."]
["Fonte dei dati"]
[]
["0.1.2 - Progettazione/ identificazione delle infrastrutture"]
["a) Strutture ai fini ricreativi come panchine, impianti sportivi, aree pic-nic, aree dedicate, ecc.), indicando almeno il numero, la posizione e la rispettiva tipologia"]
["b) Sicurezza in bosco (es. indicazioni sull'attuazione e documentazione sui controlli di sicurezza, assicurazioni, ecc)."]
["Fonte dei dati"]
[]
["0.1.3 - Pianificazione / piano di gestione forestale"]
["a) strumenti di valorizzazione di elementi turistico-ricreativi forestali (ad es. regolamento sulla valorizzazione di singoli alberi con valenze particolari o valorizzazione di infrastrutture, ecc) "]
["b) la pulizia delle aree interessate dalla fruizione turistica (modalità di esecuzione, frequenza, mezzi impiegati, ecc.)"]
["c) strumenti di gestione dei conflitti e strumenti per la loro risoluzione, ad es. linee guida per le relazioni pubbliche, per l’organizzazione di incontri con stakeholder, per l'instradamento e l’apposizione di indicatori e segnaletica in bosco, ecc."]
["d) - strumenti di gestione delle emergenze sanitarie/incidenti (strutture e misure di gestione degli interventi di soccorso)"]
["Fonte dei dati"]
[]
["0.1.4 - Controllo e monitoraggio"]
["a) Presenza di personale per controllo e monitoraggio della attività turistico ricreativa"]
["b) Creazione di un piano di monitoraggio (ad es. censimento, mappatura, sondaggi di opinione) "]
["c) Attività di formazione ed educazione relativa alle foreste, ad es. progetti didattici proposti da formatori esterni o interni certificati (visite guidate…) o strutture didattiche (sentiero forestale…)."]
["Fonte dei dati"]
[]
["INDICATORE 0.2: Accessibilità dell’area e dei percorsi (in autonomia+ con accompagnatore) "]
["0.2.1 - Viabilità carrabile e aree di parcheggio all’interno o ai margini dell’ambito proposto"]
["Libera e adeguata disponibilità per i visitatori "]
["Disponibilità regolamentata o contingentata per i visitatori "]
["Nessuna disponibilità per i visitatori."]
["Fonte dei dati"]
[]
["0.2.2 - Viabilità carrabile e aree di parcheggio in zone non contigue ma collegate all’ambito proposto\nper l’implementazione"]
["Libera e adeguata disponibilità per i visitatori "]
["Disponibilità regolamentata o contingentata per i visitatori "]
["Nessuna disponibilità per i visitatori."]
["Fonte dei dati"]
[]
["0.2.3 - Accesso al sito"]
["Agevole per chiunque "]
["Agevole con alcune limitazioni "]
["Impegnativo"]
["Disagevole "]
["Fonte dei dati"]
[]
["INDICATORE 0.3: Detrattori ambientali (sul posto, nelle vicinanze)"]
["0.3.1 - Manufatti e/o edifici strutturalmente e funzionalmente incongrui con l’ambito proposto "]
["Presenti all’interno dell’ambito proposto"]
["Presenti in zone contigue all’ambito proposto"]
["Assenti "]
["Fonte dei dati"]
[]
["0.3.2 - Attività umane percepibili come disturbanti o distraenti"]
["Ricorrenti all’interno dell’ambito proposto"]
["Occasionali all’interno dell’ambito proposto "]
["Ricorrenti in zone contigue all’ambito proposto "]
["Occasionali in zone contigue all’ambito proposto"]
["Assenti "]
["Fonte dei dati"]
[]
["INDICATORE 0.4: Stagionalità"]
["0.4.1 Fruibilità dell’ambito proposto con condizioni climatiche e meteorologiche ordinarie"]
["Fruibile tutto l’anno "]
["Fruibile per tre stagioni all’anno "]
["Fruibile per due stagioni all’anno"]
["Fruibilità limitata a una sola stagione all’anno"]
["Fonte dei dati"]
[]
["INDICATORE 0.5: Tempistica della fruizione"]
["0.5.1 - Diversificazione delle sessioni di fruizione"]
["Proponibili 4 o più sessioni di fruizione diversificate per percorsi e ambienti da visitare "]
["Proponibili più di 1 ma meno di 4 sessioni di fruizione diversificate per percorsi e/o ambienti da visitare  "]
["Proponibile una sessione di visita, diversificata solo per l’epoca di fruizione (stagionale)"]
["Fonte dei dati"]
[]
["INDICATORE 0.6 Attuazione della strategia ricreativa"]
["0.6.1-Definizione delle risorse per l'attuazione della strategia ricreativa"]
["Personale qualificato, indicando numero, disponibilità nel tempo e qualifica."]
["Risorse finanziarie per manutenzione ordinaria e miglioramento dell’offerta ricreativa."]
["Cooperazione con partner (es. associazioni, settore pubblico, ecc.)."]
["Fonte dei dati"]
[]
["Principio 1: Implementazione della strategia"]
["INDICATORE 1.1 - I cartelli e i segnavia, se previsti, devono raggiungere i seguenti obiettivi (fare riferimento, ad esempio, agli standard delle associazioni escursionistiche locali). "]
["1.1.1- Orientamento e guida dei visitatori su cartellonistica"]
["Fonte dei dati"]
["1.1.2 - Istruzioni per strutture ricreative e loro utilizzo"]
["Fonte dei dati"]
["1.1.3 - Comunicazione sulla certificazione forestale."]
["Fonte dei dati"]
[]
["INDICATORE 1.2 - La comunicazione web o cartacea deve raggiungere i seguenti obiettivi (fare riferimento, ad esempio, agli standard delle pubbliche amministrazioni o delle associazioni locali)"]
["1.2.1 - Orientamento e guida dei visitatori su web o cartacea"]
["Fonte dei dati"]
["1.2.2 istruzioni per il raggiungimento di strutture dedicate ai diversi target e al loro utilizzo."]
["Fonte dei dati"]
["1.2.3 Far riferimento alla gestione forestale sostenibile PEFC su web o cartaceo"]
["Fonte dei dati"]
[]
["INDICATORE 1.3: Le infrastrutture facenti parte della strategia ricreativa sono in buone condizioni e vengono regolarmente manutenute"]
["1.3.1 Strutture ricettive, di ristorazione e/o assimilate"]
["Presenti all’interno dell’ambito proposto"]
["Presenti in zone contigue all’ambito proposto"]
["Presenti in zone non contigue ma territorialmente ben collegate all’ambito proposto"]
["Assenti"]
["Fonte dei dati"]
[]
["INDICATORE 1.4: Il titolare del certificato facilita una buona accessibilità al suo bosco, ove possibile (collegamento ai mezzi pubblici, disponibilità di parcheggi) tutelando le caratteristiche estetiche del luogo"]
["1.4.1 -Servizi pubblici"]
["Presenti e disponibili tutto l’anno "]
["Presenti e disponibili stagionalmente "]
["Assenti"]
["Fonte dei dati"]
[]
["INDICATORE 1.5: La densità della rete di strade forestali e sentieri utilizzati per la ricreazione è appropriata. Le strade forestali sono adatte alle esigenze ricreative"]
["1.5.1- Percorribilità del sito"]
["Agevole per chiunque "]
["Agevole con alcune limitazioni "]
["Mediamente agevole ma con limiti dovuti alla lunghezza o, viceversa, alla brevità dei tracciati proposti"]
["Impegnativa"]
["Disagevole "]
["Fonte dei dati"]
[]
["1.5.2 - Accessibilità per disabili su almeno un percorso\n\n"]
["Accessibile"]
["Visitabile"]
["Adattabile"]
["Non disponibile"]
["Fonte dei dati"]
[]
["INDICATORE 1.6: A seguito di operazioni selvicolturali o perturbazioni forestali (ad esempio in seguito a calamità), i percorsi, gli spazi e gli ambienti di fruizione vengono ripristinati il prima possibile. "]
["1.6.1 - Attività selvicolturali (utilizzo a scopo economico del bosco) previste o in atto nell’ambito proposto"]
["Nessuna, non prevista"]
["Limitate a piccole estensioni e non coincidenti con il luogo e il periodo di fruizione proposto "]
["Significative in atto, previste o di recente attuazione, con ambito di cantiere visibile lungo il percorso o dagli spazi fruibili "]
["Significative in atto o di recente attuazione con residui (cumuli, cataste) con o senza maestranze presenti in loco"]
["Fonte dei dati"]
[]
[]
[]
[]
[]
[null,null,null,null,null,null,null,"Clicca \"PROCEDI\" per andare al Servizio Ecosistemico SE4"]
[null,null,null,null,null,null,null,"SE4 - IDONEITA' AL BENESSERE FORESTALE"]

{"sheet":"SE4","index":5,"n_rows":483,"n_cols":10,"rows_kept":483,"cut":false,"hidden":false,"merged":[[203,0,203,3],[203,4,203,12],[200,0,200,8],[200,9,200,10],[200,11,200,12],[201,0,201,8],[201,9,201,10],[201,11,201,12],[202,0,202,8],[202,9,202,10],[202,11,202,12],[194,0,194,8],[194,9,194,10],[194,11,194,12],[195,0,195,3],[195,4,195,12],[197,0,197,12],[198,0,198,12],[199,0,199,8],[199,9,199,10],[199,11,199,12],[191,0,191,8],[191,9,191,10],[191,11,191,12],[192,0,192,8],[192,9,192,10],[192,11,192,12],[193,0,193,8],[193,9,193,10],[193,11,193,12],[186,0,186,8],[186,9,186,10],[186,11,186,12],[187,0,187,8],[187,9,187,10],[187,11,187,12],[188,0,188,3],[188,4,188,12],[190,0,190,12],[182,0,182,12],[183,0,183,8],[183,9,183,10],[183,11,183,12],[184,0,184,8],[184,9,184,10],[184,11,184,12],[185,0,185,8],[185,9,185,10],[185,11,185,12],[177,0,177,8],[177,9,177,10],[177,11,177,12],[178,0,178,8],[178,9,178,10],[178,11,178,12],[179,0,179,3],[179,4,179,12],[181,0,181,12],[171,0,171,8],[171,9,171,10],[171,11,171,12],[172,0,172,3],[172,4,172,12],[174,0,174,12],[175,0,175,12],[176,0,176,8],[176,9,176,10],[176,11,176,12],[167,0,167,12],[168,0,168,8],[168,9,168,10],[168,11,168,12],[169,0,169,8],[169,9,169,10],[169,11,169,12],[170,0,170,8],[170,9,170,10],[170,11,170,12],[161,0,161,3],[161,4,161,12],[162,0,162,3],[162,4,162,12],[163,0,163,3],[163,4,163,12],[164,0,164,3],[164,4,164,12],[166,0,166,12],[155,0,155,3],[155,4,155,12],[156,0,156,3],[156,4,156,12],[158,0,158,12],[159,0,159,3],[159,4,159,12],[160,0,160,3],[160,4,160,12],[149,0,149,12],[150,0,150,12],[151,0,151,3],[151,4,151,12],[152,0,152,3],[152,4,152,12],[153,0,153,3],[153,4,153,12],[154,0,154,3],[154,4,154,12],[143,0,143,12],[144,0,144,3],[144,4,144,12],[145,0,145,3],[145,4,145,12],[146,0,146,3],[146,4,146,12],[147,0,147,3],[147,4,147,12],[138,0,138,8],[138,9,138,10],[138,11,138,12],[139,0,139,8],[139,9,139,10],[139,11,139,12],[140,0,140,3],[140,4,140,12],[142,0,142,12],[132,0,132,8],[132,9,132,10],[132,11,132,12],[133,0,133,3],[133,4,133,12],[135,0,135,12],[136,0,136,12],[137,0,137,8],[137,9,137,10],[137,11,137,12],[129,0,129,8],[129,9,129,10],[129,11,129,12],[130,0,130,8],[130,9,130,10],[130,11,130,12],[131,0,131,8],[131,9,131,10],[131,11,131,12],[123,0,123,8],[123,9,123,10],[123,11,123,12],[124,0,124,3],[124,4,124,12],[125,0,125,3],[125,4,125,12],[127,0,127,12],[128,0,128,12],[120,0,120,8],[120,9,120,10],[120,11,120,12],[121,0,121,8],[121,9,121,10],[121,11,121,12],[122,0,122,8],[122,9,122,10],[122,11,122,12],[115,0,115,8],[115,9,115,10],[115,11,115,12],[116,0,116,3],[116,4,116,12],[118,0,118,12],[119,0,119,8],[119,9,119,10],[119,11,119,12],[109,0,109,3],[109,4,109,12],[111,0,111,12],[112,0,112,12],[113,0,113,8],[113,9,113,10],[113,11,113,12],[114,0,114,8],[114,9,114,10],[114,11,114,12],[106,0,106,8],[106,9,106,10],[106,11,106,12],[107,0,107,8],[107,9,107,10],[107,11,107,12],[108,0,108,8],[108,9,108,10],[108,11,108,12],[101,0,101,8],[101,9,101,10],[101,11,101,12],[102,0,102,3],[102,4,102,12],[104,0,104,12],[105,0,105,8],[105,9,105,10],[105,11,105,12],[96,0,96,3],[96,4,96,12],[98,0,98,12],[99,0,99,8],[99,9,99,10],[99,11,99,12],[100,0,100,8],[100,9,100,10],[100,11,100,12],[91,0,91,12],[92,0,92,12],[93,0,93,8],[93,9,93,10],[93,11,93,12],[94,0,94,8],[94,9,94,10],[94,11,94,12],[95,0,95,8],[95,9,95,10],[95,11,95,12],[86,0,86,3],[86,4,86,12],[87,0,87,3],[87,4,87,12],[88,0,88,3],[88,4,88,12],[89,0,89,3],[89,4,89,12],[90,0,90,12],[80,0,80,3],[80,4,80,12],[81,0,81,3],[81,4,81,12],[82,0,82,3],[82,4,82,12],[83,0,83,3],[83,4,83,12],[85,0,85,12],[73,0,73,12],[74,0,74,3],[74,4,74,12],[75,0,75,3],[75,4,75,12],[76,0,76,3],[76,4,76,12],[78,0,78,12],[79,0,79,3],[79,4,79,12],[65,0,65,12],[67,0,67,12],[68,0,68,12],[69,0,69,3],[69,4,69,12],[70,0,70,3],[70,4,70,12],[71,0,71,3],[71,4,71,12],[52,0,52,3],[52,4,54,13],[53,0,54,3],[56,0,56,3],[56,4,58,13],[57,0,57,3],[58,0,58,3],[60,0,60,3],[60,4,62,13],[61,0,62,3],[39,0,39,3],[39,4,40,13],[40,0,40,3],[42,0,44,3],[42,4,46,13],[45,0,46,3],[48,0,48,3],[48,4,50,13],[49,0,50,3],[23,0,24,3],[26,0,26,3],[26,4,28,13],[27,0,27,3],[28,0,28,3],[30,0,33,3],[30,4,33,13],[35,0,35,3],[35,4,37,13],[36,0,36,3],[37,0,37,3],[470,0,470,8],[464,0,464,12],[440,0,440,12],[475,0,475,8],[476,0,476,8],[478,0,478,8],[474,0,474,12],[444,0,444,8],[448,0,448,12],[449,0,449,8],[450,0,450,8],[451,0,451,8],[452,0,452,8],[453,0,453,8],[458,0,458,8],[457,0,457,12],[458,11,458,12],[459,11,459,12],[460,11,460,12],[442,11,442,12],[443,11,443,12],[444,11,444,12],[442,9,442,10],[443,9,443,10],[425,0,425,8],[426,0,426,8],[427,0,427,8],[432,0,432,8],[433,0,433,8],[423,0,423,12],[431,0,431,12],[426,9,426,10],[426,11,426,12],[427,9,427,10],[427,11,427,12],[432,9,432,10],[432,11,432,12],[433,9,433,10],[433,11,433,12],[425,9,425,10],[425,11,425,12],[407,0,407,12],[415,0,415,12],[404,0,404,3],[404,4,404,12],[412,0,412,3],[417,0,417,8],[418,0,418,8],[419,0,419,8],[424,0,424,8],[420,0,420,3],[424,9,424,10],[424,11,424,12],[416,9,416,10],[416,11,416,12],[420,4,420,12],[417,9,417,10],[417,11,417,12],[418,9,418,10],[418,11,418,12],[419,9,419,10],[419,11,419,12],[416,0,416,8],[408,9,408,10],[408,11,408,12],[458,9,458,10],[459,9,459,10],[460,9,460,10],[478,11,478,12],[470,9,470,10],[469,9,469,10],[468,9,468,10],[467,9,467,10],[466,9,466,10],[466,11,466,12],[467,11,467,12],[468,11,468,12],[469,11,469,12],[470,11,470,12],[409,9,409,10],[409,11,409,12],[410,9,410,10],[410,11,410,12],[411,9,411,10],[411,11,411,12],[412,4,412,12],[408,0,408,8],[409,0,409,8],[410,0,410,8],[411,0,411,8],[387,4,387,12],[391,0,391,12],[392,0,392,12],[393,9,393,10],[393,11,393,12],[394,9,394,10],[394,11,394,12],[395,9,395,10],[395,11,395,12],[393,0,393,8],[394,0,394,8],[395,0,395,8],[390,0,390,12],[387,0,387,3],[373,0,373,3],[373,4,373,12],[376,0,376,12],[377,0,377,8],[378,0,378,8],[379,0,379,8],[380,0,380,3],[380,4,380,12],[377,9,377,10],[378,9,378,10],[379,9,379,10],[377,11,377,12],[378,11,378,12],[379,11,379,12],[362,9,362,10],[363,9,363,10],[364,9,364,10],[365,9,365,10],[362,11,362,12],[363,11,363,12],[364,11,364,12],[365,11,365,12],[362,0,362,8],[363,0,363,8],[364,0,364,8],[365,0,365,8],[324,11,324,12],[325,11,325,12],[326,4,326,12],[323,0,323,8],[324,0,324,8],[325,0,325,8],[347,0,347,8],[348,0,348,8],[349,0,349,8],[347,9,347,10],[348,9,348,10],[349,9,349,10],[347,11,347,12],[348,11,348,12],[349,11,349,12],[332,0,332,12],[339,0,339,12],[346,0,346,12],[331,0,331,12],[361,0,361,12],[334,0,334,8],[333,0,333,8],[335,0,335,8],[333,9,333,10],[334,9,334,10],[335,9,335,10],[333,11,333,12],[334,11,334,12],[335,11,335,12],[343,0,343,3],[336,0,336,3],[336,4,336,12],[340,0,340,8],[341,0,341,8],[342,0,342,8],[340,9,340,10],[341,9,341,10],[342,9,342,10],[340,11,340,12],[341,11,341,12],[342,11,342,12],[343,4,343,12],[360,0,360,12],[279,0,279,3],[279,4,279,12],[302,11,302,12],[306,0,306,12],[307,0,307,8],[308,0,308,8],[309,0,309,8],[310,0,310,8],[307,9,307,10],[308,9,308,10],[309,9,309,10],[310,9,310,10],[307,11,307,12],[308,11,308,12],[309,11,309,12],[310,11,310,12],[303,0,303,3],[303,4,303,12],[282,0,282,12],[283,0,283,8],[284,0,284,8],[285,0,285,8],[286,0,286,8],[283,9,283,10],[284,9,284,10],[285,9,285,10],[286,9,286,10],[283,11,283,12],[284,11,284,12],[285,11,285,12],[286,11,286,12],[266,0,266,12],[267,0,267,8],[268,0,268,8],[269,0,269,8],[270,0,270,8],[267,9,267,10],[268,9,268,10],[269,9,269,10],[270,9,270,10],[267,11,267,12],[268,11,268,12],[269,11,269,12],[270,11,270,12],[271,0,271,3],[271,4,271,12],[274,0,274,12],[275,0,275,8],[250,0,250,12],[251,0,251,8],[252,0,252,8],[253,0,253,8],[254,0,254,8],[251,9,251,10],[252,9,252,10],[253,9,253,10],[254,9,254,10],[251,11,251,12],[252,11,252,12],[253,11,253,12],[254,11,254,12],[223,0,223,3],[223,4,223,12],[226,0,226,12],[227,0,227,8],[228,0,228,8],[229,0,229,8],[230,0,230,8],[231,0,231,8],[227,9,227,10],[227,11,227,12],[228,11,228,12],[229,11,229,12],[230,11,230,12],[231,11,231,12],[228,9,228,10],[229,9,229,10],[230,9,230,10],[231,9,231,10],[221,0,221,8],[222,0,222,8],[219,9,219,10],[220,9,220,10],[221,9,221,10],[222,9,222,10],[219,11,219,12],[220,11,220,12],[221,11,221,12],[222,11,222,12],[218,0,218,12],[219,0,219,8],[220,0,220,8],[209,0,209,8],[210,0,210,8],[211,0,211,8],[212,0,212,8],[213,0,213,8],[214,0,214,8],[209,9,209,10],[210,9,210,10],[211,9,211,10],[212,9,212,10],[213,9,213,10],[214,9,214,10],[205,0,205,12],[3,0,3,12],[4,0,5,12],[207,0,207,12],[208,0,208,12],[215,0,215,3],[215,4,215,12],[209,11,209,12],[210,11,210,12],[211,11,211,12],[212,11,212,12],[213,11,213,12],[214,11,214,12],[206,0,206,12],[8,1,8,3],[8,4,8,13],[10,0,10,13],[12,0,13,3],[12,4,13,13],[16,0,16,3],[16,4,20,13],[17,0,17,3],[22,0,22,3],[22,4,24,13],[240,0,240,3],[240,4,240,12],[237,11,237,12],[238,11,238,12],[239,11,239,12],[236,0,236,12],[232,0,232,3],[232,4,232,12],[235,0,235,12],[237,0,237,8],[238,0,238,8],[239,0,239,8],[237,9,237,10],[238,9,238,10],[239,9,239,10],[243,0,243,12],[247,0,247,3],[247,4,247,12],[244,0,244,8],[245,0,245,8],[246,0,246,8],[244,9,244,10],[245,9,245,10],[246,9,246,10],[244,11,244,12],[245,11,245,12],[246,11,246,12],[255,0,255,3],[255,4,255,12],[265,0,265,12],[258,0,258,12],[259,0,259,8],[259,9,259,10],[259,11,259,12],[260,0,260,8],[260,9,260,10],[260,11,260,12],[261,0,261,8],[261,9,261,10],[261,11,261,12],[262,0,262,3],[262,4,262,12],[276,0,276,8],[277,0,277,8],[278,0,278,8],[275,9,275,10],[276,9,276,10],[277,9,277,10],[278,9,278,10],[275,11,275,12],[276,11,276,12],[277,11,277,12],[278,11,278,12],[295,0,295,3],[295,4,295,12],[287,0,287,3],[287,4,287,12],[290,0,290,12],[291,0,291,12],[292,0,292,8],[293,0,293,8],[294,0,294,8],[292,9,292,10],[293,9,293,10],[294,9,294,10],[292,11,292,12],[293,11,293,12],[294,11,294,12],[298,0,298,12],[299,0,299,8],[300,0,300,8],[301,0,301,8],[302,0,302,8],[299,9,299,10],[300,9,300,10],[301,9,301,10],[302,9,302,10],[299,11,299,12],[300,11,300,12],[301,11,301,12],[319,0,319,3],[319,4,319,12],[311,0,311,3],[311,4,311,12],[315,0,315,8],[316,0,316,8],[317,0,317,8],[318,0,318,8],[329,0,329,12],[326,0,326,3],[315,9,315,10],[316,9,316,10],[317,9,317,10],[318,9,318,10],[315,11,315,12],[316,11,316,12],[317,11,317,12],[318,11,318,12],[314,0,314,12],[322,0,322,12],[323,9,323,10],[324,9,324,10],[325,9,325,10],[323,11,323,12],[357,0,357,3],[350,0,350,3],[354,0,354,8],[355,0,355,8],[356,0,356,8],[357,4,357,12],[354,9,354,10],[355,9,355,10],[356,9,356,10],[354,11,354,12],[355,11,355,12],[356,11,356,12],[350,4,350,12],[353,0,353,12],[366,0,366,3],[366,4,366,12],[369,0,369,12],[370,0,370,8],[371,0,371,8],[372,0,372,8],[370,9,370,10],[371,9,371,10],[372,9,372,10],[370,11,370,12],[371,11,371,12],[372,11,372,12],[383,0,383,12],[384,0,384,8],[385,0,385,8],[386,0,386,8],[384,9,384,10],[385,9,385,10],[386,9,386,10],[384,11,384,12],[385,11,385,12],[386,11,386,12],[396,0,396,3],[396,4,396,12],[400,9,400,10],[401,9,401,10],[402,9,402,10],[403,9,403,10],[400,11,400,12],[401,11,401,12],[402,11,402,12],[403,11,403,12],[399,0,399,12],[400,0,400,8],[401,0,401,8],[402,0,402,8],[403,0,403,8],[439,0,439,12],[428,0,428,3],[428,4,428,12],[436,0,436,3],[436,4,436,12],[435,9,435,10],[435,11,435,12],[434,0,434,8],[435,0,435,8],[434,9,434,10],[434,11,434,12],[441,0,441,12],[442,0,442,8],[445,0,445,3],[445,4,445,12],[454,0,454,3],[454,4,454,12],[449,11,449,12],[450,11,450,12],[451,11,451,12],[452,11,452,12],[453,11,453,12],[443,0,443,8],[444,9,444,10],[449,9,449,10],[450,9,450,10],[451,9,451,10],[452,9,452,10],[453,9,453,10],[461,0,461,3],[461,4,461,12],[459,0,459,8],[460,0,460,8],[465,0,465,12],[466,0,466,8],[467,0,467,8],[468,0,468,8],[469,0,469,8],[477,0,477,8],[482,0,483,5],[482,6,483,12],[471,0,471,3],[471,4,471,12],[479,0,479,3],[479,4,479,12],[475,9,475,10],[475,11,475,12],[476,9,476,10],[476,11,476,12],[477,9,477,10],[477,11,477,12],[478,9,478,10]]}
[]
[]
[]
["SE4 - IDONEITA' AL BENESSERE FORESTALE"]
["NB Per questa attestazione si deve tenere in considerazione anche la parte legata alla fruizione delle funzioni turistiche in quanto elemento base per il benessere forestale"]
[]
[]
[]
[null,"Attività del Progetto:"]
[]
["ATTIVITA' ADDIZIONALE "]
[]
["a) Finalità generali del servizio e obiettivi specifici di eventuali interventi finalizzati al raggiungimento dell’obiettivo e del suo mantenimento (punto a del DDP)"]
[]
[]
[]
["b) Risultati migliorativi misurabili da ottenere(punto b del DDP)"]
[]
[]
[]
[]
[]
["c) Risultati già ottenuti a seguito di precedenti attività svolte  (punto c del DDP)"]
[]
[]
[]
["d) Tempistiche necessarie per l’implementazione  (punto d del DDP)"]
["se applicabile"]
[]
[]
["e) Scenario di riferimento o gestione ordinaria (definita anche Business as usual - BAU), nell’area oggetto del SE e per confronto con aree assimilabili (indicare eventuali ricerche bibliografiche effettuate per definire questo valore) (punto e del DDP)"]
[]
[]
[]
[]
["f) Responsabilità, per attuazione e monitoraggio successivo del progetto  (punto f del DDP)"]
[]
[]
[]
["g) Definizione delle competenze necessarie e loro evidenze di mantenimento (punto g del DDP)"]
[]
[]
[" h) Risorse (umane e materiali) da mettere in campo (punto h del DDP)"]
[]
[]
[]
[]
[]
["i) Data della prima misurazione dalla quale dovrebbero essere visibili i benefici ottenuti,  (punto j del DDP)"]
[]
[]
[]
[" j) Risorse (umane e materiali) da mettere in campo (punto j del DDP)"]
[]
[]
[]
["k) Data della prima misurazione dalla quale dovrebbero essere visibili i benefici ottenuti,  (punto k del DDP)"]
["se applicabile"]
[]
[]
["l) Informazioni necessarie all’organismo di certificazione per la verifica del SE, come riportato dagli Allegati di questo standard  (punto l del DDP)"]
[]
[]
[]
[]
["Principio di base: Pianificazione di una strategia per la ricreazione e fruibilità"]
[]
["INDICATORE 0.1: Esiste e viene implementata una strategia ricreativa per l'area forestale / l'impresa."]
["0.1.1 - Definizione dei target e dell’ambito di fruizione (specifica a carattere prescrittivo)"]
["a) Si richiede l’individuazione dei possibili fruitori dell’area, come ad esempio gruppi di fruitori/attività/destinazione d’uso."]
["b) Si richiede che l’ambito (o gli ambiti) di fruizione sia precisamente identificato su mappa, indicando confini individuabili anche in loco, come elementi morfologici (strade, impluvi, corsi d’acqua, rilievi, crinali, ecc.), limiti particellari (anche del piano di gestione), limiti di proprietà o catastali, recinzioni, discontinuità dei soprassuoli, ecc."]
["Fonte dei dati"]
[]
["0.1.2 - Progettazione/ identificazione delle infrastrutture"]
["a) Strutture ai fini ricreativi come panchine, impianti sportivi, aree pic-nic, aree dedicate, ecc.), indicando almeno il numero, la posizione e la rispettiva tipologia"]
["b) Sicurezza in bosco (es. indicazioni sull'attuazione e documentazione sui controlli di sicurezza, assicurazioni, ecc)."]
["Fonte dei dati"]
[]
["0.1.3 - Pianificazione / piano di gestione forestale"]
["a) strumenti di valorizzazione di elementi turistico-ricreativi forestali (ad es. regolamento sulla valorizzazione di singoli alberi con valenze particolari o valorizzazione di infrastrutture, ecc) "]
["b) la pulizia delle aree interessate dalla fruizione turistica (modalità di esecuzione, frequenza, mezzi impiegati, ecc.)"]
["c) strumenti di gestione dei conflitti e strumenti per la loro risoluzione, ad es. linee guida per le relazioni pubbliche, per l’organizzazione di incontri con stakeholder, per l'instradamento e l’apposizione di indicatori e segnaletica in bosco, ecc."]
["d) - strumenti di gestione delle emergenze sanitarie/incidenti (strutture e misure di gestione degli interventi di soccorso)"]
["Fonte dei dati"]
[]
["0.1.4 - Controllo e monitoraggio"]
["a) Presenza di personale per controllo e monitoraggio della attività turistico ricreativa"]
["b) Creazione di un piano di monitoraggio (ad es. censimento, mappatura, sondaggi di opinione) "]
["c) Attività di formazione ed educazione relativa alle foreste, ad es. progetti didattici proposti da formatori esterni o interni certificati (visite guidate…) o strutture didattiche (sentiero forestale…)."]
["Fonte dei dati"]
["Per il calcolo del punteggio copiare il punteggio di riferimento nella cella azzurra"]
["INDICATORE 0.2: Accessibilità dell’area e dei percorsi (in autonomia+ con accompagnatore) "]
["0.2.1 - Viabilità carrabile e aree di parcheggio all’interno o ai margini dell’ambito proposto"]
["Libera e adeguata disponibilità per i visitatori ",null,null,null,null,null,null,null,null,"1"]
["Disponibilità regolamentata o contingentata per i visitatori ",null,null,null,null,null,null,null,null,"2"]
["Nessuna disponibilità per i visitatori.",null,null,null,null,null,null,null,null,"1"]
["Fonte dei dati"]
[]
["0.2.2 - Viabilità carrabile e aree di parcheggio in zone non contigue ma collegate all’ambito proposto\nper l’implementazione"]
["Libera e adeguata disponibilità per i visitatori ",null,null,null,null,null,null,null,null,"2"]
["Disponibilità regolamentata o contingentata per i visitatori ",null,null,null,null,null,null,null,null,"1"]
["Nessuna disponibilità per i visitatori.",null,null,null,null,null,null,null,null,"0"]
["Fonte dei dati"]
[]
["0.2.3 - Accesso al sito"]
["Agevole per chiunque ",null,null,null,null,null,null,null,null,"3"]
["Agevole con alcune limitazioni ",null,null,null,null,null,null,null,null,"2"]
["Impegnativo",null,null,null,null,null,null,null,null,"1"]
["Disagevole ",null,null,null,null,null,null,null,null,"0"]
["Fonte dei dati"]
[]
["INDICATORE 0.3: Detrattori ambientali (sul posto, nelle vicinanze)"]
["0.3.1 - Manufatti e/o edifici strutturalmente e funzionalmente incongrui con l’ambito proposto "]
["Presenti all’interno dell’ambito proposto",null,null,null,null,null,null,null,null,"0"]
["Presenti in zone contigue all’ambito proposto",null,null,null,null,null,null,null,null,"1"]
["Assenti ",null,null,null,null,null,null,null,null,"2"]
["Fonte dei dati"]
[]
["0.3.2 - Attività umane percepibili come disturbanti o distraenti"]
["Ricorrenti all’interno dell’ambito proposto",null,null,null,null,null,null,null,null,"0"]
["Occasionali all’interno dell’ambito proposto ",null,null,null,null,null,null,null,null,"1"]
["Ricorrenti in zone contigue all’ambito proposto ",null,null,null,null,null,null,null,null,"1"]
["Occasionali in zone contigue all’ambito proposto",null,null,null,null,null,null,null,null,"2"]
["Assenti ",null,null,null,null,null,null,null,null,3]
["Fonte dei dati"]
["Punteggio ottenuto"]
[]
["INDICATORE 0.4: Stagionalità"]
["0.4.1 Fruibilità dell’ambito proposto con condizioni climatiche e meteorologiche ordinarie"]
["Fruibile tutto l’anno ",null,null,null,null,null,null,null,null,"4"]
["Fruibile per tre stagioni all’anno ",null,null,null,null,null,null,null,null,"3"]
["Fruibile per due stagioni all’anno",null,null,null,null,null,null,null,null,"2"]
["Fruibilità limitata a una sola stagione all’anno",null,null,null,null,null,null,null,null,"1"]
["Fonte dei dati"]
[]
["INDICATORE 0.5: Tempistica della fruizione"]
["0.5.1 - Diversificazione delle sessioni di fruizione"]
["Proponibili 4 o più sessioni di fruizione diversificate per percorsi e ambienti da visitare ",null,null,null,null,null,null,null,null,"4"]
["Proponibili più di 1 ma meno di 4 sessioni di fruizione diversificate per percorsi e/o ambienti da visitare  ",null,null,null,null,null,null,null,null,"3"]
["Proponibile una sessione di visita, diversificata solo per l’epoca di fruizione (stagionale)",null,null,null,null,null,null,null,null,"1"]
["Fonte dei dati"]
[]
["INDICATORE 0.6 Attuazione della strategia ricreativa"]
["0.6.1-Definizione delle risorse per l'attuazione della strategia ricreativa"]
["Personale qualificato, indicando numero, disponibilità nel tempo e qualifica."]
["Risorse finanziarie per manutenzione ordinaria e miglioramento dell’offerta ricreativa."]
["Cooperazione con partner (es. associazioni, settore pubblico, ecc.)."]
["Fonte dei dati"]
[]
["Principio 1: Implementazione della strategia"]
["INDICATORE 1.1 - I cartelli e i segnavia, se previsti, devono raggiungere i seguenti obiettivi (fare riferimento, ad esempio, agli standard delle associazioni escursionistiche locali). "]
["1.1.1- Orientamento e guida dei visitatori su cartellonistica"]
["Fonte dei dati"]
["1.1.2 - Istruzioni per strutture ricreative e loro utilizzo"]
["Fonte dei dati"]
["1.1.3 - Comunicazione sulla certificazione forestale."]
["Fonte dei dati"]
[]
["INDICATORE 1.2 - La comunicazione web o cartacea deve raggiungere i seguenti obiettivi (fare riferimento, ad esempio, agli standard delle pubbliche amministrazioni o delle associazioni locali)"]
["1.2.1 - Orientamento e guida dei visitatori su web o cartacea"]
["Fonte dei dati"]
["1.2.2 istruzioni per il raggiungimento di strutture dedicate ai diversi target e al loro utilizzo."]
["Fonte dei dati"]
["1.2.3 Far riferimento alla gestione forestale sostenibile PEFC su web o cartaceo"]
["Fonte dei dati"]
[]
["INDICATORE 1.3: Le infrastrutture facenti parte della strategia ricreativa sono in buone condizioni e vengono regolarmente manutenute"]
["1.3.1 Strutture ricettive, di ristorazione e/o assimilate"]
["Presenti all’interno dell’ambito proposto",null,null,null,null,null,null,null,null,"0"]
["Presenti in zone contigue all’ambito proposto",null,null,null,null,null,null,null,null,"3"]
["Presenti in zone non contigue ma territorialmente ben collegate all’ambito proposto",null,null,null,null,null,null,null,null,"2"]
["Assenti",null,null,null,null,null,null,null,null,"0"]
["Fonte dei dati"]
[]
["INDICATORE 1.4: Il titolare del certificato facilita una buona accessibilità al suo bosco, ove possibile (collegamento ai mezzi pubblici, disponibilità di parcheggi) tutelando le caratteristiche estetiche del luogo"]
["1.4.1 -Servizi pubblici"]
["Presenti e disponibili tutto l’anno ",null,null,null,null,null,null,null,null,"2"]
["Presenti e disponibili stagionalmente ",null,null,null,null,null,null,null,null,"1"]
["Assenti",null,null,null,null,null,null,null,null,"0"]
["Fonte dei dati"]
[]
["INDICATORE 1.5: La densità della rete di strade forestali e sentieri utilizzati per la ricreazione è appropriata. Le strade forestali sono adatte alle esigenze ricreative"]
["1.5.1- Percorribilità del sito"]
["Agevole per chiunque ",null,null,null,null,null,null,null,null,"4"]
["Agevole con alcune limitazioni ",null,null,null,null,null,null,null,null,"3"]
["Mediamente agevole ma con limiti dovuti alla lunghezza o, viceversa, alla brevità dei tracciati proposti",null,null,null,null,null,null,null,null,"2"]
["Impegnativa",null,null,null,null,null,null,null,null,"1"]
["Disagevole ",null,null,null,null,null,null,null,null,"0"]
["Fonte dei dati"]
[]
["1.5.2 - Accessibilità per disabili su almeno un percorso\n\n"]
["Accessibile",null,null,null,null,null,null,null,null,"3"]
["Visitabile",null,null,null,null,null,null,null,null,"2"]
["Adattabile",null,null,null,null,null,null,null,null,"1"]
["Non disponibile",null,null,null,null,null,null,null,null,0]
["Fonte dei dati"]
[]
["INDICATORE 1.6: A seguito di operazioni selvicolturali o perturbazioni forestali (ad esempio in seguito a calamità), i percorsi, gli spazi e gli ambienti di fruizione vengono ripristinati il prima possibile. "]
["1.6.1 - Attività selvicolturali (utilizzo a scopo economico del bosco) previste o in atto nell’ambito proposto"]
["Nessuna, non prevista",null,null,null,null,null,null,null,null,"3"]
["Limitate a piccole estensioni e non coincidenti con il luogo e il periodo di fruizione proposto ",null,null,null,null,null,null,null,null,"2"]
["Significative in atto, previste o di recente attuazione, con ambito di cantiere visibile lungo il percorso o dagli spazi fruibili ",null,null,null,null,null,null,null,null,"1"]
["Significative in atto o di recente attuazione con residui (cumuli, cataste) con o senza maestranze presenti in loco",null,null,null,null,null,null,null,null,"0"]
["Fonte dei dati"]
[]
["Principio 2: Individuazione di elementi strutturali e scenici per una migliore fruizione ricreativa del bosco"]
["Per il calcolo del punteggio copiare il punteggio di riferimento nella cella azzurra"]
["INDICATORE 2.1: Struttura della foresta"]
["2.1.1 - Tipologia forestale prevalente nell’ambito di pertinenza del/dei percorso/percorsi"]
[" conifere monospecifica",null,null,null,null,null,null,null,null,1]
[" conifere plurispecifica",null,null,null,null,null,null,null,null,2]
[" latifoglie monospecifica",null,null,null,null,null,null,null,null,2]
[" latifoglie plurispecifica",null,null,null,null,null,null,null,null,3]
[" misto bispecifica (conifera + latifoglia)",null,null,null,null,null,null,null,null,2]
[" misto plurispecifica",null,null,null,null,null,null,null,null,3]
["Fonte dei dati"]
[]
[]
["2.1.2 - Età della formazione forestale prevalente nell’ambito di pertinenza del/dei percorso/percorsi"]
["coetanea",null,null,null,null,null,null,null,null,1]
["due classi di età",null,null,null,null,null,null,null,null,1]
["disetanea",null,null,null,null,null,null,null,null,2]
["disetanea per gruppi",null,null,null,null,null,null,null,null,3]
["Fonte dei dati"]
[]
[]
["2.1.3 - Sottobosco nella formazione forestale"]
["Assente",null,null,null,null,null,null,null,null,1]
["Raro o saltuario",null,null,null,null,null,null,null,null,2]
["A pevalenza erbacea o muscinale",null,null,null,null,null,null,null,null,2]
["Mediamente diffuso",null,null,null,null,null,null,null,null,3]
["Molto diffuso e denso ",null,null,null,null,null,null,null,null,0]
["Fonte dei dati"]
[]
[]
["INDICATORE 2.2:  Orografia complessiva (dislivelli; guadi o altri attraversamenti; zone o tratti esposti)"]
["2.2.1 - Dislivelli del/dei percorso/i e degli spazi fruibili"]
["assenti ",null,null,null,null,null,null,null,null,1]
["modesti ",null,null,null,null,null,null,null,null,2]
["impegnativi ",null,null,null,null,null,null,null,null,0]
["Fonte dei dati"]
[]
[]
["2.2.2 - Guadi o altri attraversamenti di corsi d’acqua lungo il/i percorso/percorsi"]
["assenti ",null,null,null,null,null,null,null,null,1]
["pochi, di limitata estensione su modesti salti di quota",null,null,null,null,null,null,null,null,2]
["diffusi e/o impegnativi ",null,null,null,null,null,null,null,null,0]
["Fonte dei dati"]
[]
[]
["2.2.3 - Zone o tratti esposti lungo il/i percorso/i"]
["assenti",null,null,null,null,null,null,null,null,2]
["pochi, di limitata estensione su modesti salti di quota ",null,null,null,null,null,null,null,null,1]
["pochi ma estesi su salti di quota impegnativi",null,null,null,null,null,null,null,null,0]
["ricorrenti, diffusi ",null,null,null,null,null,null,null,null,0]
["Fonte dei dati"]
[]
[]
["2.2.4 - Spazi esterni al percorso/i"]
["assenti",null,null,null,null,null,null,null,null,0]
["radi o sporadici",null,null,null,null,null,null,null,null,1]
["diffusi e diversificati",null,null,null,null,null,null,null,null,3]
["Fonte dei dati"]
[]
[]
["INDICATORE 2.3:  Complessità strutturale del luogo (omogeneità elementi presenti; raggruppamenti di elementi; punti focali)"]
["2.3.1 - Punti o aree focali apprezzabili dal percorso/i o dagli spazi fruibili"]
["Assenti ",null,null,null,null,null,null,null,null,0]
["Sporadici ",null,null,null,null,null,null,null,null,1]
["Ricorrenti ",null,null,null,null,null,null,null,null,2]
["Diffusi ",null,null,null,null,null,null,null,null,1]
["Fonte dei dati"]
[]
[]
["2.3.2 - Raggruppamenti di elementi percepibili dal percorso/i o dagli spazi fruibili"]
["Assenti ",null,null,null,null,null,null,null,null,0]
["Sporadici ",null,null,null,null,null,null,null,null,1]
["Frequenti o ricorrenti ",null,null,null,null,null,null,null,null,2]
["Diffusi ",null,null,null,null,null,null,null,null,1]
["Fonte dei dati"]
[]
[]
["2.3.3 - Distribuzione spaziale dei principali elementi identitari del sito"]
["Totalmente disomogenei ",null,null,null,null,null,null,null,null,0]
["Scarsamente omogenei ",null,null,null,null,null,null,null,null,1]
["Tendenzialmente omogenei ",null,null,null,null,null,null,null,null,2]
["Altamente omogenei ",null,null,null,null,null,null,null,null,1]
["Fonte dei dati"]
[]
[]
["INDICATORE 2.4:  Caratteristiche sceniche/paesaggistiche (visuali prospettiche; visuali non complete; regolarità della superficie del suolo) negli spazi fruibili"]
["2.4.1 - Visuali prospettiche"]
["Assenti ",null,null,null,null,null,null,null,null,0]
["Rare o sporadiche ",null,null,null,null,null,null,null,null,1]
["Frequenti o ricorrenti ",null,null,null,null,null,null,null,null,2]
["Fonte dei dati"]
[]
[]
["2.4.2 - Visuali incomplete"]
["Assenti o non accessibili ",null,null,null,null,null,null,null,null,0]
["Rare o sporadiche ",null,null,null,null,null,null,null,null,1]
["Frequenti o ricorrenti ",null,null,null,null,null,null,null,null,2]
["Prevalenti e diffuse ",null,null,null,null,null,null,null,null,2]
["Fonte dei dati"]
[]
[]
["2.4.3 - Regolarità della superficie del suolo"]
["Suolo accidentato, molto irregolare ovunque ",null,null,null,null,null,null,null,null,0]
["Ricorrenza di fondo irregolare lungo percorsi  ",null,null,null,null,null,null,null,null,1]
["Lievi irregolarità localizzate lungo i percorsi ",null,null,null,null,null,null,null,null,3]
["Suolo con superficie uniforme e regolare ",null,null,null,null,null,null,null,null,2]
["Fonte dei dati"]
[]
[]
["2.4.4 - Copertura arborea prevalente"]
["Sparsa o rada ",null,null,null,null,null,null,null,null,"1"]
["Mediamente aperta ",null,null,null,null,null,null,null,null,"2"]
["Semichiusa ",null,null,null,null,null,null,null,null,"3"]
["Totalmente chiusa ",null,null,null,null,null,null,null,null,"4"]
["Fonte dei dati"]
[]
[]
["2.4.5 - Altezza delle chiome del piano arboreo"]
["Bassa (altezza d’uomo)",null,null,null,null,null,null,null,null,"0"]
["Inferiore a quella tipica della specie ",null,null,null,null,null,null,null,null,"1"]
["Tipica della specie per il contesto considerato",null,null,null,null,null,null,null,null,2]
["Fonte dei dati"]
[]
[]
["PRINCIPIO  3: Presenza di elementi rafforzativi delle specificità naturali e sceniche del luogo"]
[]
["INDICATORE 3.1: Le componenti percettive elementari (acqua, fuoco, terra, aria) "]
["3.1.1 - Elementi che esprimono la componente acqua "]
["Presenza di più elementi nell’ambito proposto o di più siti di accesso o di osservazione dello stesso elemento ",null,null,null,null,null,null,null,null,"2"]
["Presenza di un solo elemento nell’ambito proposto con un solo sito di agevole accesso o osservazione  ",null,null,null,null,null,null,null,null,"1"]
["Assente ",null,null,null,null,null,null,null,null,0]
["Fonte dei dati"]
[]
[]
["3.1.2 - Elementi che esprimono la componente terra"]
["Presenza di più elementi nell’ambito proposto o di più siti di accesso o di osservazione dello stesso elemento",null,null,null,null,null,null,null,null,"2"]
["Presenza di un solo elemento nell’ambito proposto con un solo sito di agevole accesso o osservazione ",null,null,null,null,null,null,null,null,"1"]
["Assente",null,null,null,null,null,null,null,null,0]
["Fonte dei dati"]
[]
[]
["3.1.3 - Elementi che esprimono la componente fuoco"]
["Presenza di più elementi nell’ambito proposto o di più siti di accesso o di osservazione dello stesso elemento",null,null,null,null,null,null,null,null,"2"]
["Presenza di un solo elemento nell’ambito proposto con un solo sito di agevole accesso o osservazione",null,null,null,null,null,null,null,null,"1"]
["Assente ",null,null,null,null,null,null,null,null,0]
["Fonte dei dati"]
[]
[]
["3.1.4 - Elementi che esprimono la componente aria"]
["Presenza di più elementi nell’ambito proposto o di più siti di accesso o di osservazione dello stesso elemento ",null,null,null,null,null,null,null,null,"2"]
["Presenza di un solo elemento nell’ambito proposto con un solo sito di agevole accesso o osservazione  ",null,null,null,null,null,null,null,null,"1"]
["Assente ",null,null,null,null,null,null,null,null,0]
["Fonte dei dati"]
[]
[]
["INDICATORE 3.2: Componenti dal chiaro significato archetipico (del luogo; del paesaggio)"]
["3.2.1 - Significati archetipici nel luogo di fruizione"]
["Presenza di almeno 6 elementi “archetipici” raggiungibili o osservabili da vicino;",null,null,null,null,null,null,null,null,"6"]
["Presenza di almeno 3 ma meno di 6 elementi “archetipici” raggiungibili o osservabili da vicino;",null,null,null,null,null,null,null,null,"3"]
["Presenza di almeno 1 ma meno di 3 elementi “archetipici” raggiungibili o osservabili da vicino;",null,null,null,null,null,null,null,null,"1"]
["Nessun elemento raggiungibile o osservabile da vicino.",null,null,null,null,null,null,null,null,0]
["Fonte dei dati"]
[]
[]
["3.2.2 - Scorcio panoramico con ampia visuale aperta sul paesaggio "]
["Visuale da posizione dominante ",null,null,null,null,null,null,null,null,"2"]
["Visuale da posizione non dominante ",null,null,null,null,null,null,null,null,"1"]
["Assente ",null,null,null,null,null,null,null,null,0]
["Fonte dei dati"]
[]
[]
["3.2.3 - Montagna, catena montuosa, falesie costituenti punto di orientamento o riferimento geografico"]
["Visibile da più punti di osservazione ",null,null,null,null,null,null,null,null,"2"]
["Visibile da un solo punto di osservazione ",null,null,null,null,null,null,null,null,1]
["Assente o non visibile",null,null,null,null,null,null,null,null,"0"]
["Fonte dei dati"]
[]
[]
["3.2.4 - Lago, specchio d’acqua o fiume costituente punto di orientamento o riferimento geografico\n\n"]
["Visibile da più punti di osservazione ",null,null,null,null,null,null,null,null,"2"]
["Visibile da un solo punto di osservazione ",null,null,null,null,null,null,null,null,1]
["Assente o non visibile ",null,null,null,null,null,null,null,null,"0"]
["Fonte dei dati"]
[]
[]
["PRINCIPIO  4: Ambienti con potenzialità ristorative dell’attenzione diretta"]
["INDICATORE 4.1: Requisiti individuati dalla “Attention Restoration Theory” integrati da una preferenza ambientale L’indicatore considera qualità del luogo che possono essere apprezzate a livello cognitivo e si basa sull’uso della versione italiana ridotta della Perceived Restorativeness Scale (PRS-11)"]
["4.1.1 - Preferenza ambientale espressa con la compilazione di PRS-11"]
["Compilazione da parte di 12 o più persone di differente età, genere e professione;",null,null,null,null,null,null,null,null,"2"]
["Compilazione da parte di più di 5 ma meno di 12 persone di differente età, genere e professione;",null,null,null,null,null,null,null,null,1]
["Compilazione da parte di più di 2 ma meno di 6 persone di differente età, genere e professione.",null,null,null,null,null,null,null,null,"0"]
["Fonte dei dati"]
[]
[]
["4.1.2 - Requisito BEING AWAY"]
["Media del requisito uguale o maggiore di 7 ",null,null,null,null,null,null,null,null,"3"]
["Media del requisito oltre 5 ma inferiore a 7 ",null,null,null,null,null,null,null,null,"2"]
["Media del requisito oltre 3 fino a 5 ",null,null,null,null,null,null,null,null,"1"]
["Media del requisito uguale o inferiore a 3",null,null,null,null,null,null,null,null,"0"]
["Fonte dei dati"]
[]
[]
["4.1.3 - Requisito FASCINATION"]
["Media del requisito uguale o maggiore di 7 ",null,null,null,null,null,null,null,null,"3"]
["Media del requisito oltre 5 ma inferiore a 7 ",null,null,null,null,null,null,null,null,"2"]
["Media del requisito oltre 3 fino a 5 ",null,null,null,null,null,null,null,null,"1"]
["Media del requisito uguale o inferiore a 3",null,null,null,null,null,null,null,null,"0"]
["Fonte dei dati"]
[]
[]
["4.1.4 - Requisito COHERENCE"]
["Media del requisito uguale o maggiore di 7 ",null,null,null,null,null,null,null,null,1]
["Media del requisito oltre 5 ma inferiore a 7 ",null,null,null,null,null,null,null,null,"2"]
["Media del requisito oltre 3 fino a 5 ",null,null,null,null,null,null,null,null,3]
["Media del requisito uguale o inferiore a 3",null,null,null,null,null,null,null,null,"0"]
["Fonte dei dati"]
[]
[]
["4.1.5 - Requisito SCOPE"]
["Media del requisito uguale o maggiore di 7 ",null,null,null,null,null,null,null,null,"3"]
["Media del requisito oltre 5 ma inferiore a 7 ",null,null,null,null,null,null,null,null,"2"]
["Media del requisito oltre 3 fino a 5 ",null,null,null,null,null,null,null,null,"1"]
["Media del requisito uguale o inferiore a 3",null,null,null,null,null,null,null,null,"0"]
["Fonte dei dati"]
[]
[]
["4.1.6 - Requisito PREFERENCE"]
["Media del requisito uguale o maggiore di 7 ",null,null,null,null,null,null,null,null,"3"]
["Media del requisito oltre 5 ma inferiore a 7 ",null,null,null,null,null,null,null,null,"2"]
["Media del requisito oltre 3 fino a 5 ",null,null,null,null,null,null,null,null,"1"]
["Media del requisito uguale o inferiore a 3",null,null,null,null,null,null,null,null,"0"]
["Fonte dei dati"]
[]
[]
["PRINCIPIO  5: Ambienti potenzialmente attivi sulla fisiologia umana"]
["INDICATORE 5.1: Ionizzazione negativa dell’aria "]
["5.1.1 - Effetto Lenard"]
["Presenza di più corsi o corpi d’acqua all’interno del sito, perenni o attivi nel periodo di fruizione, con salti di quota significativi (cascate, cateratte) o con acqua che si infrange su sponde rocciose o ghiaiose, facilmente raggiungibili o visitabili in sicurezza;",null,null,null,null,null,null,null,null,"2"]
["Presenza di un solo corso o corpo d’acqua all’interno del sito, perenne o attivo nel periodo di fruizione, con salti di quota significativi (cascate, cateratte) o con acqua che si infrange su sponde rocciose o ghiaiose, facilmente raggiungibile o visitabile in sicurezza;",null,null,null,null,null,null,null,null,"1"]
["Presenza di corsi o corpi d’acqua non visitabili o non raggiungibili all’interno del sito, oppure privi di significativi salti di quota, con portata scarsa o assente per una parte del periodo di fruizione e con bassa velocità del flusso idrico; oppure assenza di corpi d’acqua nel sito",null,null,null,null,null,null,null,null,"0"]
["Fonte dei dati"]
[]
[]
["5.1.2 - Effetto Corona"]
["Prevalenza (>50%) di specie con foglie aghiformi ",null,null,null,null,null,null,null,null,"3"]
["Presenza significativa (>20%) ma non prevalente (<50%) di specie con foglie aghiformi ",null,null,null,null,null,null,null,null,"2"]
["Prevalenza (>50%) di specie latifoglie con foglie ad apice acuminato",null,null,null,null,null,null,null,null,"2"]
["Presenza significativa (>20%) ma non prevalente (<50%) di specie latifoglie con foglie ad apice acuminato",null,null,null,null,null,null,null,null,"1"]
["Altre formazioni con piano arboreo avente caratteristiche non corrispondenti ",null,null,null,null,null,null,null,null,0]
["Fonte dei dati"]
[]
[]
["3 - Attività fotosintetica"]
["Prevalenza (>50%) di formazioni forestali mature ",null,null,null,null,null,null,null,null,"2"]
["Presenza significativa (>20%) ma non prevalente (<50%) di formazioni forestali mature ",null,null,null,null,null,null,null,null,"1"]
["Altre formazioni forestali con caratteristiche non corrispondenti ",null,null,null,null,null,null,null,null,0]
["Fonte dei dati"]
[]
[]
["INDICATORE 5.2: Emissione di monoterpeni"]
["5.2.1 - Potenziale emissivo"]
["Prevalenza (>50% della copertura arborea) di specie arboree con potenziale emissivo specifico maggiore di 3 μg di monoterpeni totali · g-1 di sost. secca fogliare · h-1;",null,null,null,null,null,null,null,null,"4"]
["Presenza significativa (>20% ma <50% della copertura arborea) di specie arboree con potenziale emissivo specifico maggiore di 3 μg di monoterpeni totali · g-1 di sost. secca fogliare · h-1;",null,null,null,null,null,null,null,null,"3"]
["Prevalenza (>50% della copertura arborea) di specie arboree con potenziale emissivo specifico maggiore di 1 ma inferiore a 3 μg di monoterpeni totali · g-1 di sost. secca fogliare · h-1;",null,null,null,null,null,null,null,null,"2"]
["Presenza significativa (>20% ma <50% della copertura arborea) di specie arboree con potenziale emissivo maggiore di 1 ma minore di 3 μg di monoterpeni totali · g-1 di sost. secca fogliare · h-1;",null,null,null,null,null,null,null,null,"1"]
["Presenza di oltre l’80% di specie con potenziale emissivo specifico inferiore a 1 μg di monoterpeni totali · g-1 di sost. secca fogliare · h-1.",null,null,null,null,null,null,null,null,"0"]
["Fonte dei dati"]
[]
[]
["5.2.2 - Potenziale fotosintetico"]
["Prevalenza (>50%) di formazioni forestali mature con struttura per lo più monoplana o biplana ",null,null,null,null,null,null,null,null,"3"]
["Presenza significativa (>20%) ma non prevalente (<50%) di formazioni forestali mature con struttura per lo più monoplana o biplana",null,null,null,null,null,null,null,null,"2"]
["Netta prevalenza (>75%) di formazioni forestali parzialmente mature con struttura pluristratificata, o di formazioni con struttura monoplana e copertura totalmente chiusa;",null,null,null,null,null,null,null,null,"1"]
["Altre formazioni forestali con caratteristiche non riconducibili ai livelli sopra descritti",null,null,null,null,null,null,null,null,"0"]
["Fonte dei dati"]
[]
[]
["Punteggio totale proprietà",null,null,null,null,null,{"$f":"L203+L202+L201+L200+L195+L194+L193+L192+L188+L187+L186+L185+L184+L179+L178+L177+L172+L171+L170+L169+L140+L139+L138+L133+L132+L131+L130+L124+L123+L122+L121+L120+L116+L115+L114+L109+L108+L107+L106+L102+L101+L100+L96+L95+L94+L210+L211+L212+L213+L214+L215+L220+L221+L222+L223+L228+L229+L230+L231+L232+L238+L239+L240+L245+L246+L247+L252+L253+L254+L255+L260+L261+L262+L268+L269+L270+L271+L276+L277+L278+L279+L284+L285+L286+L287+L293+L294+L295+L300+L301+L302+L303+L308+L309+L310+L311+L316+L317+L318+L319+L324+L325+L326+L334+L335+L336+L341+L342+L343+L348+L349+L350+L355+L356+L357+L363+L364+L365+L366+L371+L372+L373+L378+L379+L380+L385+L386+L387+L394+L395+L396+L401+L402+L403+L404+L409+L410+L411+L412+L417+L418+L419+L420+L425+L426+L427+L428+L433+L434+L435+L436+L443+L444+L445+L450+L451+L452+L453+L454+L459+L460+L461+L467+L468+L469+L470+L471+L476+L477+L478+L479","v":0}]